Workbook

Sheet Introduction
A2: remarks? tony.opsomer@gmail.com | H2: version 2023-07-15
A4: D-EVIE | Aquila A210
B6: A210 | C6: Flight log form
C7: Performance form
C8: Weight and balance form
A11: Vliegclub Grimbergen BE.DTO.113
A12: download the latest version from https://goahead.classy.be/weight-balance/

Sheet Flight log FORM
B2: VFR FLIGHT LOG | VCG BE.DTO.113 | E2: D-EVIE | F2: FLIGHT TYPE | G2: VCG PILOT N°: | I2: TEMP | K2: FUEL TANK | L2: =IF(E2=1,"",AJ40) -> 109.6 | M2: =IF(L2="","",ROUND(L2/3.785412,2)) -> 28.95 | O2: To be completed by a VCG flight instructor (FI) in case of student flight | U2: Notes | AD2: Calculations
E3: 1 | F3: 1 | G3: DATE: | H3: =TODAY() -> 2023-07-15 | I3: TAS | J3: 107 | K3: Consumption | L3: =MAX('Aquila performance specs'!I6:I12) -> 22 | M3: =ROUND(L3/3.785412,2) -> 5.81 | O3: Date of Flight
B4: =Introduction!A2&" | "&Introduction!H2 -> remarks? tony.opsomer@gmail.com | version 2023-07-15 | E4: =IF(AND(E3=2,LEFT(B6,2)<>LEFT(B7,2),B7<>""),"DON'T FORGET TO FILE A FLIGHTPLAN AND REGISTER THE FLIGHT BEFORE TAKEOFF!",IF(AND(OR(E3=3,E3=2),LEFT(B6,2)=LEFT(B7,2)),"DON'T FORGET TO REGISTER THE FLIGHT BEFORE TAKEOFF!","")) ->  | I4: Pilot Name | O4: Name and signature of student pilot
B5: Airfield | C5: Gnd freq | D5: Twr / Rad freq | E5: ATIS freq | F5: Elev | G5: QNH | I5: W | J5: V | K5: RWY | L5: Preferred RWY | M5: RWY length | O5: Name of FI
D6: =IF(B6="EBGB",119.505,"") ->  | F6: =IF(B6="EBGB",70,"") ->  | K6: =IF(B6="EBGB","01-19","") ->  | L6: =IF(ISERROR(AG29),"",AG29) ->  | M6: =IF(B6="EBGB",615,"") ->  | O6: FI number
B7: =IF(E3=3,B6,"") ->  | C7: =IF(E3=3,C6,"") ->  | D7: =IF(E3=3,D6,"") ->  | E7: =IF(E3=3,E6,"") ->  | F7: =IF(E3=3,F6,IF(B7="EBGB",70,"")) ->  | G7: =IF(E3=3,G6,IF(G6="","",G6)) ->  | I7: =IF(B7=B6,I6,IF(OR(AF33=0,ISERROR(AF33)),"",AF33)) -> 0 | J7: =IF(OR(AH33=0,ISERROR(AH33)),"",IF(B7=B6,J6,AH33)) -> 0 | K7: =IF(B7="EBGB","01-19","") ->  | L7: =IF(ISERROR(AG34),"",IF(B7=B6,L6,AG34)) ->  | M7: =IF(E3=3,M6,IF(B7="EBGB",615,"")) ->  | AD7: dropdown list
B9: ALTERNATES | E9: Elev | K9: Elev | O9: FI signature | R9: A student pilot is NOT allowed to continue his/her flight when anomalies occurred or after landing at another aerodrome than originally intended (EASA FCL.020 FCL.045)
C10: RWY | E10: Radio freq | I10: RWY | K10: Radio freq | O10: Vliegclub Grimbergen
C11: LDA | I11: LDA | O11: BE.DTO.113
B13: SQWK-codes | C13: Standard VFR | E13: 2000 if ATS 7000 if no ATS | F13: Hijack | G13: 7500 | I13: Radio failure | K13: 7600 | L13: Distress | M13: 7700 | O13: Light gun signals | U13: Interception signals | AH13: 1 | AI13: SELECT
AH14: 2 | AI14: NAV
B15: NEW SQWK | C15: 0041-0057 (VFR - Bru info) | E15: NEW QNH | J15: TAKE-OFF TIME | L15: : | AH15: 3 | AI15: LOC
B17: From / To | C17: VOR | E17: W / V | F17: Rv/ Var | G17: Cm | H17: Cc | I17: DIST / Cruise ALT | J17: GS | K17: EET / TOT EET | L17: Enroute radio / Frequency
C18: Name | D18: Bearing | AH18: 1 | AI18: SELECT
C19: Freq | D19: TO/FROM | AH19: 2 | AI19: DAY
A20: =IF(B21=$B$7,$B$7,"") ->  | B20: =IF(B6="","",B6) ->  | E20: =IF(I6="","",I6) ->  | G20: =IF(OR(F20<0,F20>359,F20="",F21=""),"",IF((ROUND(((180/PI())*(((PI()/180)*F20)+SIN((E21/$J$3)*(SIN(((PI()/180)*E20)-((PI()/180)*F20)))))-F21),0))>=360,ROUND(((180/PI())*(((PI()/180)*F20)+SIN((E21/$J$3)*(SIN(((PI()/180)*E20)-((PI()/180)*F20))))))-F21,0)-360,IF((ROUND(((180/PI())*(((PI()/180)*F20)+SIN((E21/$J$3)*(SIN(((PI()/180)*E20)-((PI()/180)*F20)))))-F21),0))<0,ROUND(((180/PI())*(((PI()/180)*F20)+SIN((E21/$J$3)*(SIN(((PI()/180)*E20)-((PI()/180)*F20)))))-F21),0)+360,ROUND(((180/PI())*(((PI()/180)*F20)+SIN((E21/$J$3)*(SIN(((PI()/180)*E20)-((PI()/180)*F20)))))-F21),0)))) ->  | H20: =IF(OR(F20<0,F20>359,F20="",F21=""),"",IF((ROUND(((180/PI())*(((PI()/180)*F20)+SIN((E21/$J$3)*(SIN(((PI()/180)*E20)-((PI()/180)*F20)))))-F21-AL57),0))>=360,ROUND(((180/PI())*(((PI()/180)*F20)+SIN((E21/$J$3)*(SIN(((PI()/180)*E20)-((PI()/180)*F20))))))-F21-AL57,0)-360,IF((ROUND(((180/PI())*(((PI()/180)*F20)+SIN((E21/$J$3)*(SIN(((PI()/180)*E20)-((PI()/180)*F20)))))-F21-AL57),0))<0,ROUND(((180/PI())*(((PI()/180)*F20)+SIN((E21/$J$3)*(SIN(((PI()/180)*E20)-((PI()/180)*F20)))))-F21-AL57),0)+360,ROUND(((180/PI())*(((PI()/180)*F20)+SIN((E21/$J$3)*(SIN(((PI()/180)*E20)-((PI()/180)*F20)))))-F21-AL57),0)))) ->  | J20: =IF(OR(F20<0,F20>359,F20=""),"",ROUND($J$3*SQRT((1-((($E21/$J$3)*(SIN(((PI()/180)*$E20)-((PI()/180)*F20))))^2)))-($E21*COS(((PI()/180)*$E20)-((PI()/180)*F20))),0)) ->  | K20: =IF(OR(I20=0,I20="",F20=""),"",ROUND(((I20/J20)*60),1)) ->  | AH20: 3 | AI20: NIGHT
E21: =IF(J6="","",J6) ->  | K21: =IF(K20="","","TOT: "&K20) -> 
B22: =IF(OR(B21="",B21=B7),"",B21) ->  | E22: =IF(OR(B21="",B21=B7),"",I$6) ->  | G22: =IF(OR(F22<0,F22>359,F22="",F23=""),"",IF((ROUND(((180/PI())*(((PI()/180)*F22)+SIN((E23/$J$3)*(SIN(((PI()/180)*E22)-((PI()/180)*F22)))))-F23),0))>=360,ROUND(((180/PI())*(((PI()/180)*F22)+SIN((E23/$J$3)*(SIN(((PI()/180)*E22)-((PI()/180)*F22))))))-F23,0)-360,IF((ROUND(((180/PI())*(((PI()/180)*F22)+SIN((E23/$J$3)*(SIN(((PI()/180)*E22)-((PI()/180)*F22)))))-F23),0))<0,ROUND(((180/PI())*(((PI()/180)*F22)+SIN((E23/$J$3)*(SIN(((PI()/180)*E22)-((PI()/180)*F22))))))-F23,0)+360,ROUND(((180/PI())*(((PI()/180)*F22)+SIN((E23/$J$3)*(SIN(((PI()/180)*E22)-((PI()/180)*F22)))))-F23),0)))) ->  | H22: =IF(OR(F22<0,F22>359,F22="",F23=""),"",IF((ROUND(((180/PI())*(((PI()/180)*F22)+SIN((E23/$J$3)*(SIN(((PI()/180)*E22)-((PI()/180)*F22)))))-F23-AL58),0))>=360,ROUND(((180/PI())*(((PI()/180)*F22)+SIN((E23/$J$3)*(SIN(((PI()/180)*E22)-((PI()/180)*F22))))))-F23-AL58,0)-360,IF((ROUND(((180/PI())*(((PI()/180)*F22)+SIN((E23/$J$3)*(SIN(((PI()/180)*E22)-((PI()/180)*F22)))))-F23-AL58),0))<0,ROUND(((180/PI())*(((PI()/180)*F22)+SIN((E23/$J$3)*(SIN(((PI()/180)*E22)-((PI()/180)*F22))))))-F23-AL58,0)+360,ROUND(((180/PI())*(((PI()/180)*F22)+SIN((E23/$J$3)*(SIN(((PI()/180)*E22)-((PI()/180)*F22)))))-F23-AL58),0)))) ->  | J22: =IF(OR(F22<0,F22>359,F22=""),"",ROUND($J$3*SQRT((1-((($E23/$J$3)*(SIN(((PI()/180)*$E22)-((PI()/180)*F22))))^2)))-($E23*COS(((PI()/180)*$E22)-((PI()/180)*F22))),0)) ->  | K22: =IF(OR(I22=0,I22="",F22=""),"",ROUND(((I22/J22)*60),1)) -> 
E23: =IF(OR(B21="",B21=B7),"",J$6) ->  | F23: =IF(OR(B21="",B21=B7,F21=""),"",F21) ->  | I23: =IF(OR(B21="",B21=B7),"",IF(OR(B21="",I21=""),"",I21)) ->  | K23: =IF(K22="","","TOT: "&K20+K22) ->  | AD23: Preferred QFU
B24: =IF(OR(B23="",B23=B7),"",B23) ->  | E24: =IF(OR(B23="",B23=B7),"",I$6) ->  | G24: =IF(OR(F24<0,F24>359,F24="",F25=""),"",IF((ROUND(((180/PI())*(((PI()/180)*F24)+SIN((E25/$J$3)*(SIN(((PI()/180)*E24)-((PI()/180)*F24)))))-F25),0))>=360,ROUND(((180/PI())*(((PI()/180)*F24)+SIN((E25/$J$3)*(SIN(((PI()/180)*E24)-((PI()/180)*F24))))))-F25,0)-360,IF((ROUND(((180/PI())*(((PI()/180)*F24)+SIN((E25/$J$3)*(SIN(((PI()/180)*E24)-((PI()/180)*F24)))))-F25),0))<0,ROUND(((180/PI())*(((PI()/180)*F24)+SIN((E25/$J$3)*(SIN(((PI()/180)*E24)-((PI()/180)*F24))))))-F25,0)+360,ROUND(((180/PI())*(((PI()/180)*F24)+SIN((E25/$J$3)*(SIN(((PI()/180)*E24)-((PI()/180)*F24)))))-F25),0)))) ->  | H24: =IF(OR(F24<0,F24>359,F24="",F25=""),"",IF((ROUND(((180/PI())*(((PI()/180)*F24)+SIN((E25/$J$3)*(SIN(((PI()/180)*E24)-((PI()/180)*F24)))))-F25-AL59),0))>=360,ROUND(((180/PI())*(((PI()/180)*F24)+SIN((E25/$J$3)*(SIN(((PI()/180)*E24)-((PI()/180)*F24))))))-F25-AL59,0)-360,IF((ROUND(((180/PI())*(((PI()/180)*F24)+SIN((E25/$J$3)*(SIN(((PI()/180)*E24)-((PI()/180)*F24)))))-F25-AL59),0))<0,ROUND(((180/PI())*(((PI()/180)*F24)+SIN((E25/$J$3)*(SIN(((PI()/180)*E24)-((PI()/180)*F24))))))-F25-AL59,0)+360,ROUND(((180/PI())*(((PI()/180)*F24)+SIN((E25/$J$3)*(SIN(((PI()/180)*E24)-((PI()/180)*F24)))))-F25-AL59),0)))) ->  | I24: =IF(OR(B23="",B23=B6),"",0) ->  | J24: =IF(OR(F24<0,F24>359,F24=""),"",ROUND($J$3*SQRT((1-((($E25/$J$3)*(SIN(((PI()/180)*$E24)-((PI()/180)*F24))))^2)))-($E25*COS(((PI()/180)*$E24)-((PI()/180)*F24))),0)) ->  | K24: =IF(OR(I24=0,I24="",F24=""),"",ROUND(((I24/J24)*60),1)) ->  | AD24: journey
E25: =IF(OR(B23="",B23=B7),"",J$6) ->  | F25: =IF(OR(B23="",B23=B7,F23=""),"",F23) ->  | I25: =IF(OR(B23="",B23=B7),"",IF(OR(B23="",I23=""),"",I23)) ->  | K25: =IF(K24="","","TOT: "&K20+K22+K24) ->  | AD25: =B6 -> 0 | AE25: =VALUE(LEFT(K6,2)) ->  | AG25: =VALUE(RIGHT(K6,2)) ->  | AI25: CHECK
B26: =IF(OR(B25="",B25=B7),"",B25) ->  | E26: =IF(OR(B25="",B25=B7),"",I$6) ->  | G26: =IF(OR(F26<0,F26>359,F26="",F27=""),"",IF((ROUND(((180/PI())*(((PI()/180)*F26)+SIN((E27/$J$3)*(SIN(((PI()/180)*E26)-((PI()/180)*F26)))))-F27),0))>=360,ROUND(((180/PI())*(((PI()/180)*F26)+SIN((E27/$J$3)*(SIN(((PI()/180)*E26)-((PI()/180)*F26))))))-F27,0)-360,IF((ROUND(((180/PI())*(((PI()/180)*F26)+SIN((E27/$J$3)*(SIN(((PI()/180)*E26)-((PI()/180)*F26)))))-F27),0))<0,ROUND(((180/PI())*(((PI()/180)*F26)+SIN((E27/$J$3)*(SIN(((PI()/180)*E26)-((PI()/180)*F26))))))-F27,0)+360,ROUND(((180/PI())*(((PI()/180)*F26)+SIN((E27/$J$3)*(SIN(((PI()/180)*E26)-((PI()/180)*F26)))))-F27),0)))) ->  | H26: =IF(OR(F26<0,F26>359,F26="",F27=""),"",IF((ROUND(((180/PI())*(((PI()/180)*F26)+SIN((E27/$J$3)*(SIN(((PI()/180)*E26)-((PI()/180)*F26)))))-F27-AL60),0))>=360,ROUND(((180/PI())*(((PI()/180)*F26)+SIN((E27/$J$3)*(SIN(((PI()/180)*E26)-((PI()/180)*F26))))))-F27-AL60,0)-360,IF((ROUND(((180/PI())*(((PI()/180)*F26)+SIN((E27/$J$3)*(SIN(((PI()/180)*E26)-((PI()/180)*F26)))))-F27-AL60),0))<0,ROUND(((180/PI())*(((PI()/180)*F26)+SIN((E27/$J$3)*(SIN(((PI()/180)*E26)-((PI()/180)*F26))))))-F27-AL60,0)+360,ROUND(((180/PI())*(((PI()/180)*F26)+SIN((E27/$J$3)*(SIN(((PI()/180)*E26)-((PI()/180)*F26)))))-F27-AL60),0)))) ->  | I26: =IF(OR(B25="",B25=B7),"",0) ->  | J26: =IF(OR(F26<0,F26>359,F26=""),"",ROUND($J$3*SQRT((1-((($E27/$J$3)*(SIN(((PI()/180)*$E26)-((PI()/180)*F26))))^2)))-($E27*COS(((PI()/180)*$E26)-((PI()/180)*F26))),0)) ->  | K26: =IF(OR(I26=0,I26="",F26=""),"",ROUND(((I26/J26)*60),1)) ->  | AE26: =AH28*COS((ABS((AE25*10)-AF28)*PI()/180)) ->  | AF26: =IF(AE26<0,"TW",IF(AE26>=0,"HW",)) ->  | AG26: =AH28*COS((ABS((AG25*10)-AF28)*PI()/180)) ->  | AH26: =IF(AG26<0,"TW",IF(AG26>=0,"HW",)) ->  | AI26: =IF(AE26<0,IF(AG26<0,"DANGER",IF(AE26<AG26,AG25,AE25)),AE25) -> 
E27: =IF(OR(B25="",B25=B7),"",J$6) ->  | F27: =IF(OR(B25="",B25=B7,F25=""),"",F25) ->  | I27: =IF(OR(B25="",B25=B7),"",IF(OR(B25="",I25=""),"",I25)) ->  | K27: =IF(K26="","","TOT: "&K20+K22+K24+K26) ->  | AE27: =AH28*SIN((ABS((AE25*10)-AF28)*PI()/180)) ->  | AF27: CW | AG27: =AH28*SIN((ABS((AG25*10)-AF28)*PI()/180)) ->  | AH27: CW | AI27: =IF(ABS(AE27)<15,IF(ABS(AG27)<15,"OK","DANGER")) -> 
B28: =IF(OR(B27="",B27=B7),"",B27) ->  | E28: =IF(OR(B27="",B27=B7),"",I$6) ->  | G28: =IF(OR(F28<0,F28>359,F28="",F29=""),"",IF((ROUND(((180/PI())*(((PI()/180)*F28)+SIN((E29/$J$3)*(SIN(((PI()/180)*E28)-((PI()/180)*F28)))))-F29),0))>=360,ROUND(((180/PI())*(((PI()/180)*F28)+SIN((E29/$J$3)*(SIN(((PI()/180)*E28)-((PI()/180)*F28))))))-F29,0)-360,IF((ROUND(((180/PI())*(((PI()/180)*F28)+SIN((E29/$J$3)*(SIN(((PI()/180)*E28)-((PI()/180)*F28)))))-F29),0))<0,ROUND(((180/PI())*(((PI()/180)*F28)+SIN((E29/$J$3)*(SIN(((PI()/180)*E28)-((PI()/180)*F28))))))-F29,0)+360,ROUND(((180/PI())*(((PI()/180)*F28)+SIN((E29/$J$3)*(SIN(((PI()/180)*E28)-((PI()/180)*F28)))))-F29),0)))) ->  | H28: =IF(OR(F28<0,F28>359,F28="",F29=""),"",IF((ROUND(((180/PI())*(((PI()/180)*F28)+SIN((E29/$J$3)*(SIN(((PI()/180)*E28)-((PI()/180)*F28)))))-F29-AL61),0))>=360,ROUND(((180/PI())*(((PI()/180)*F28)+SIN((E29/$J$3)*(SIN(((PI()/180)*E28)-((PI()/180)*F28))))))-F29-AL61,0)-360,IF((ROUND(((180/PI())*(((PI()/180)*F28)+SIN((E29/$J$3)*(SIN(((PI()/180)*E28)-((PI()/180)*F28)))))-F29-AL61),0))<0,ROUND(((180/PI())*(((PI()/180)*F28)+SIN((E29/$J$3)*(SIN(((PI()/180)*E28)-((PI()/180)*F28))))))-F29-AL61,0)+360,ROUND(((180/PI())*(((PI()/180)*F28)+SIN((E29/$J$3)*(SIN(((PI()/180)*E28)-((PI()/180)*F28)))))-F29-AL61),0)))) ->  | I28: =IF(OR(B27="",B27=B7),"",0) ->  | J28: =IF(OR(F28<0,F28>359,F28=""),"",ROUND($J$3*SQRT((1-((($E29/$J$3)*(SIN(((PI()/180)*$E28)-((PI()/180)*F28))))^2)))-($E29*COS(((PI()/180)*$E28)-((PI()/180)*F28))),0)) ->  | K28: =IF(OR(I28=0,I28="",F28=""),"",ROUND(((I28/J28)*60),1)) ->  | AE28: W | AF28: =I6 -> 0 | AG28: V | AH28: =J6 -> 0
E29: =IF(OR(B27="",B27=B7),"",J$6) ->  | F29: =IF(OR(B27="",B27=B7,F27=""),"",F27) ->  | I29: =IF(OR(B27="",B27=B7),"",IF(OR(B27="",I27=""),"",I27)) ->  | K29: =IF(K28="","","TOT: "&K20+K22+K24+K26+K28) ->  | O29: Marshaller hand signals | AE29: PREFERRED QFU | AG29: =IF(AI27="OK",AI26,"DANGER") -> 
B30: =IF(OR(B29="",B29=B7),"",B29) ->  | E30: =IF(OR(B29="",B29=B7),"",I$6) ->  | G30: =IF(OR(F30<0,F30>359,F30="",F31=""),"",IF((ROUND(((180/PI())*(((PI()/180)*F30)+SIN((E31/$J$3)*(SIN(((PI()/180)*E30)-((PI()/180)*F30)))))-F31),0))>=360,ROUND(((180/PI())*(((PI()/180)*F30)+SIN((E31/$J$3)*(SIN(((PI()/180)*E30)-((PI()/180)*F30))))))-F31,0)-360,IF((ROUND(((180/PI())*(((PI()/180)*F30)+SIN((E31/$J$3)*(SIN(((PI()/180)*E30)-((PI()/180)*F30)))))-F31),0))<0,ROUND(((180/PI())*(((PI()/180)*F30)+SIN((E31/$J$3)*(SIN(((PI()/180)*E30)-((PI()/180)*F30))))))-F31,0)+360,ROUND(((180/PI())*(((PI()/180)*F30)+SIN((E31/$J$3)*(SIN(((PI()/180)*E30)-((PI()/180)*F30)))))-F31),0)))) ->  | H30: =IF(OR(F30<0,F30>359,F30="",F31=""),"",IF((ROUND(((180/PI())*(((PI()/180)*F30)+SIN((E31/$J$3)*(SIN(((PI()/180)*E30)-((PI()/180)*F30)))))-F31-AL62),0))>=360,ROUND(((180/PI())*(((PI()/180)*F30)+SIN((E31/$J$3)*(SIN(((PI()/180)*E30)-((PI()/180)*F30))))))-F31-AL62,0)-360,IF((ROUND(((180/PI())*(((PI()/180)*F30)+SIN((E31/$J$3)*(SIN(((PI()/180)*E30)-((PI()/180)*F30)))))-F31-AL62),0))<0,ROUND(((180/PI())*(((PI()/180)*F30)+SIN((E31/$J$3)*(SIN(((PI()/180)*E30)-((PI()/180)*F30))))))-F31-AL62,0)+360,ROUND(((180/PI())*(((PI()/180)*F30)+SIN((E31/$J$3)*(SIN(((PI()/180)*E30)-((PI()/180)*F30)))))-F31-AL62),0)))) ->  | I30: =IF(OR(B29="",B29=B7),"",0) ->  | J30: =IF(OR(F30<0,F30>359,F30=""),"",ROUND($J$3*SQRT((1-((($E31/$J$3)*(SIN(((PI()/180)*$E30)-((PI()/180)*F30))))^2)))-($E31*COS(((PI()/180)*$E30)-((PI()/180)*F30))),0)) ->  | K30: =IF(OR(I30=0,I30="",F30=""),"",ROUND(((I30/J30)*60),1)) ->  | AD30: =B7 ->  | AE30: =VALUE(LEFT(K7,2)) ->  | AG30: =VALUE(RIGHT(K7,2)) -> 
E31: =IF(OR(B29="",B29=B7),"",J$6) ->  | F31: =IF(OR(B29="",B29=B7,F29=""),"",F29) ->  | I31: =IF(OR(B29="",B29=B7),"",IF(OR(B29="",I29=""),"",I29)) ->  | K31: =IF(K30="","","TOT: "&K20+K22+K24+K26+K28+K30) ->  | AE31: =AH33*COS((ABS((AE30*10)-AF33)*PI()/180)) ->  | AF31: =IF(AE31<0,"TW",IF(AE31>=0,"HW",)) ->  | AG31: =AH33*COS((ABS((AG30*10)-AF33)*PI()/180)) ->  | AH31: =IF(AG31<0,"TW",IF(AG31>=0,"HW",)) ->  | AI31: =IF(AE31<0,IF(AG31<0,"DANGER",IF(AE31<AG31,AG30,AE30)),AE30) -> 
B32: =IF(OR(B31="",B31=B7),"",B31) ->  | E32: =IF(OR(B31="",B31=B7),"",I$6) ->  | G32: =IF(OR(F32<0,F32>359,F32="",F33=""),"",IF((ROUND(((180/PI())*(((PI()/180)*F32)+SIN((E33/$J$3)*(SIN(((PI()/180)*E32)-((PI()/180)*F32)))))-F33),0))>=360,ROUND(((180/PI())*(((PI()/180)*F32)+SIN((E33/$J$3)*(SIN(((PI()/180)*E32)-((PI()/180)*F32))))))-F33,0)-360,IF((ROUND(((180/PI())*(((PI()/180)*F32)+SIN((E33/$J$3)*(SIN(((PI()/180)*E32)-((PI()/180)*F32)))))-F33),0))<0,ROUND(((180/PI())*(((PI()/180)*F32)+SIN((E33/$J$3)*(SIN(((PI()/180)*E32)-((PI()/180)*F32))))))-F33,0)+360,ROUND(((180/PI())*(((PI()/180)*F32)+SIN((E33/$J$3)*(SIN(((PI()/180)*E32)-((PI()/180)*F32)))))-F33),0)))) ->  | H32: =IF(OR(F32<0,F32>359,F32="",F33=""),"",IF((ROUND(((180/PI())*(((PI()/180)*F32)+SIN((E33/$J$3)*(SIN(((PI()/180)*E32)-((PI()/180)*F32)))))-F33-AL63),0))>=360,ROUND(((180/PI())*(((PI()/180)*F32)+SIN((E33/$J$3)*(SIN(((PI()/180)*E32)-((PI()/180)*F32))))))-F33-AL63,0)-360,IF((ROUND(((180/PI())*(((PI()/180)*F32)+SIN((E33/$J$3)*(SIN(((PI()/180)*E32)-((PI()/180)*F32)))))-F33-AL63),0))<0,ROUND(((180/PI())*(((PI()/180)*F32)+SIN((E33/$J$3)*(SIN(((PI()/180)*E32)-((PI()/180)*F32))))))-F33-AL63,0)+360,ROUND(((180/PI())*(((PI()/180)*F32)+SIN((E33/$J$3)*(SIN(((PI()/180)*E32)-((PI()/180)*F32)))))-F33-AL63),0)))) ->  | I32: =IF(OR(B31="",B31=B7),"",0) ->  | J32: =IF(OR(F32<0,F32>359,F32=""),"",ROUND($J$3*SQRT((1-((($E33/$J$3)*(SIN(((PI()/180)*$E32)-((PI()/180)*F32))))^2)))-($E33*COS(((PI()/180)*$E32)-((PI()/180)*F32))),0)) ->  | K32: =IF(OR(I32=0,I32="",F32=""),"",ROUND(((I32/J32)*60),1)) ->  | AE32: =AH33*SIN((ABS((AE30*10)-AF33)*PI()/180)) ->  | AF32: CW | AG32: =AH33*SIN((ABS((AG30*10)-AF33)*PI()/180)) ->  | AH32: CW | AI32: =IF(ABS(AE32)<15,IF(ABS(AG32)<15,"OK","DANGER")) -> 
E33: =IF(OR(B31="",B31=B7),"",J$6) ->  | F33: =IF(OR(B31="",B31=B7,F31=""),"",F31) ->  | I33: =IF(OR(B31="",B31=B7),"",IF(OR(B31="",I31=""),"",I31)) ->  | K33: =IF(K32="","","TOT: "&K20+K22+K24+K26+K28+K30+K32) ->  | AE33: W | AF33: =IF(OR(B7="",B7=0),"",VLOOKUP(B7,A20:E36,5,FALSE)) ->  | AG33: V | AH33: =IF(OR(B7="",B7=0),"",VLOOKUP(B7,B20:E37,4,FALSE)) -> 
B34: =IF(OR(B33="",B33=B7),"",B33) ->  | E34: =IF(OR(B33="",B33=B7),"",I$6) ->  | G34: =IF(OR(F34<0,F34>359,F34="",F35=""),"",IF((ROUND(((180/PI())*(((PI()/180)*F34)+SIN((E35/$J$3)*(SIN(((PI()/180)*E34)-((PI()/180)*F34)))))-F35),0))>=360,ROUND(((180/PI())*(((PI()/180)*F34)+SIN((E35/$J$3)*(SIN(((PI()/180)*E34)-((PI()/180)*F34))))))-F35,0)-360,IF((ROUND(((180/PI())*(((PI()/180)*F34)+SIN((E35/$J$3)*(SIN(((PI()/180)*E34)-((PI()/180)*F34)))))-F35),0))<0,ROUND(((180/PI())*(((PI()/180)*F34)+SIN((E35/$J$3)*(SIN(((PI()/180)*E34)-((PI()/180)*F34))))))-F35,0)+360,ROUND(((180/PI())*(((PI()/180)*F34)+SIN((E35/$J$3)*(SIN(((PI()/180)*E34)-((PI()/180)*F34)))))-F35),0)))) ->  | H34: =IF(OR(F34<0,F34>359,F34="",F35=""),"",IF((ROUND(((180/PI())*(((PI()/180)*F34)+SIN((E35/$J$3)*(SIN(((PI()/180)*E34)-((PI()/180)*F34)))))-F35-AL64),0))>=360,ROUND(((180/PI())*(((PI()/180)*F34)+SIN((E35/$J$3)*(SIN(((PI()/180)*E34)-((PI()/180)*F34))))))-F35-AL64,0)-360,IF((ROUND(((180/PI())*(((PI()/180)*F34)+SIN((E35/$J$3)*(SIN(((PI()/180)*E34)-((PI()/180)*F34)))))-F35-AL64),0))<0,ROUND(((180/PI())*(((PI()/180)*F34)+SIN((E35/$J$3)*(SIN(((PI()/180)*E34)-((PI()/180)*F34))))))-F35-AL64,0)+360,ROUND(((180/PI())*(((PI()/180)*F34)+SIN((E35/$J$3)*(SIN(((PI()/180)*E34)-((PI()/180)*F34)))))-F35-AL64),0)))) ->  | I34: =IF(OR(B33="",B33=B7),"",0) ->  | J34: =IF(OR(F34<0,F34>359,F34=""),"",ROUND($J$3*SQRT((1-((($E35/$J$3)*(SIN(((PI()/180)*$E34)-((PI()/180)*F34))))^2)))-($E35*COS(((PI()/180)*$E34)-((PI()/180)*F34))),0)) ->  | K34: =IF(OR(I34=0,I34="",F34=""),"",ROUND(((I34/J34)*60),1)) ->  | AE34: PREFERRED QFU | AG34: =IF(AI32="OK",AI31,"DANGER") -> 
E35: =IF(OR(B33="",B33=B7),"",J$6) ->  | F35: =IF(OR(B33="",B33=B7,F33=""),"",F33) ->  | I35: =IF(OR(B33="",B33=B7),"",IF(OR(B33="",I33=""),"",I33)) ->  | K35: =IF(K34="","","TOT: "&K20+K22+K24+K26+K28+K30+K32+K34) -> 
B36: =IF(OR(B35="",B35=B7),"",B35) ->  | E36: =IF(OR(B35="",B35=B7),"",I$6) ->  | G36: =IF(OR(F36<0,F36>359,F36="",F37=""),"",IF((ROUND(((180/PI())*(((PI()/180)*F36)+SIN((E37/$J$3)*(SIN(((PI()/180)*E36)-((PI()/180)*F36)))))-F37),0))>=360,ROUND(((180/PI())*(((PI()/180)*F36)+SIN((E37/$J$3)*(SIN(((PI()/180)*E36)-((PI()/180)*F36))))))-F37,0)-360,IF((ROUND(((180/PI())*(((PI()/180)*F36)+SIN((E37/$J$3)*(SIN(((PI()/180)*E36)-((PI()/180)*F36)))))-F37),0))<0,ROUND(((180/PI())*(((PI()/180)*F36)+SIN((E37/$J$3)*(SIN(((PI()/180)*E36)-((PI()/180)*F36))))))-F37,0)+360,ROUND(((180/PI())*(((PI()/180)*F36)+SIN((E37/$J$3)*(SIN(((PI()/180)*E36)-((PI()/180)*F36)))))-F37),0)))) ->  | H36: =IF(OR(F36<0,F36>359,F36="",F37=""),"",IF((ROUND(((180/PI())*(((PI()/180)*F36)+SIN((E37/$J$3)*(SIN(((PI()/180)*E36)-((PI()/180)*F36)))))-F37-AL65),0))>=360,ROUND(((180/PI())*(((PI()/180)*F36)+SIN((E37/$J$3)*(SIN(((PI()/180)*E36)-((PI()/180)*F36))))))-F37-AL65,0)-360,IF((ROUND(((180/PI())*(((PI()/180)*F36)+SIN((E37/$J$3)*(SIN(((PI()/180)*E36)-((PI()/180)*F36)))))-F37-AL65),0))<0,ROUND(((180/PI())*(((PI()/180)*F36)+SIN((E37/$J$3)*(SIN(((PI()/180)*E36)-((PI()/180)*F36))))))-F37-AL65,0)+360,ROUND(((180/PI())*(((PI()/180)*F36)+SIN((E37/$J$3)*(SIN(((PI()/180)*E36)-((PI()/180)*F36)))))-F37-AL65),0)))) ->  | I36: =IF(OR(B35="",B35=B7),"",0) ->  | J36: =IF(OR(F36<0,F36>359,F36=""),"",ROUND($J$3*SQRT((1-((($E37/$J$3)*(SIN(((PI()/180)*$E36)-((PI()/180)*F36))))^2)))-($E37*COS(((PI()/180)*$E36)-((PI()/180)*F36))),0)) ->  | K36: =IF(OR(I36=0,I36="",F36=""),"",ROUND(((I36/J36)*60),1)) -> 
E37: =IF(OR(B35="",B35=B7),"",J$6) ->  | F37: =IF(OR(B35="",B35=B7,F35=""),"",F35) ->  | I37: =IF(OR(B35="",B35=B7),"",IF(OR(B35="",I35=""),"",I35)) ->  | K37: =IF(K36="","","TOT: "&K20+K22+K24+K26+K28+K30+K32+K34+K36) -> 
C38: Fuel trip | E38: =IF(OR(F3="",F3=1),"SELECT DAY OR NIGHT in F3",IF(F3=2,"DAY: +30 min spare",IF(F3=3,"NIGHT: + 45 min spare","UNKOWN ERROR"))) -> SELECT DAY OR NIGHT in F3 | G38: Max drift correction | I38: TOTAL | J38: Avg GS | K38: TOTAL TIME | AT38: =IF(ISERROR(VLOOKUP(AS38,$AE$38:$AQ$46,3,FALSE)),"",VLOOKUP(AS38,$AE$38:$AQ$46,3,FALSE)) ->  | AU38: =IF(ISERROR(VLOOKUP(AS38,$AE$38:$AQ$46,2,FALSE)),"",VLOOKUP(AS38,$AE$38:$AQ$46,2,FALSE)) ->  | AV38: =IF(ISERROR(VLOOKUP(AS38,$AE$38:$AQ$46,4,FALSE)),"",VLOOKUP(AS38,$AE$38:$AQ$46,4,FALSE)) ->  | AW38: =IF(ISERROR(VLOOKUP(AS38,$AE$38:$AQ$46,5,FALSE)),"",VLOOKUP(AS38,$AE$38:$AQ$46,5,FALSE)) ->  | AX38: =IF(ISERROR(VLOOKUP(AS38,$AE$38:$AQ$46,6,FALSE)),"",VLOOKUP(AS38,$AE$38:$AQ$46,6,FALSE)) ->  | AY38: =IF(AX38="","",IF(AX38>180,AX38-180,AX38+180)) ->  | AZ38: =IF(ISERROR(VLOOKUP(AS38,$AE$38:$AQ$46,7,FALSE)),"",VLOOKUP(AS38,$AE$38:$AQ$46,7,FALSE)) ->  | BA38: =IF(ISERROR(VLOOKUP(AS38,$AE$38:$AQ$46,8,FALSE)),"",VLOOKUP(AS38,$AE$38:$AQ$46,8,FALSE)) ->  | BB38: =IF(ISERROR(VLOOKUP(AS38,$AE$38:$AQ$46,9,FALSE)),"",VLOOKUP(AS38,$AE$38:$AQ$46,9,FALSE)) ->  | BC38: =IF(ISERROR(VLOOKUP(AS38,$AE$38:$AQ$46,10,FALSE)),"",VLOOKUP(AS38,$AE$38:$AQ$46,10,FALSE)) ->  | BD38: =IF(ISERROR(VLOOKUP(AS38,$AE$38:$AQ$46,11,FALSE)),"",VLOOKUP(AS38,$AE$38:$AQ$46,11,FALSE)) ->  | BE38: =IF(ISERROR(VLOOKUP(AS38,$AE$38:$AQ$46,12,FALSE)),"",VLOOKUP(AS38,$AE$38:$AQ$46,12,FALSE)) ->  | BF38: =IF(ISERROR(VLOOKUP(AS38,$AF$38:$AR$46,13,FALSE)),"",VLOOKUP(AS38,$AF$38:$AR$46,13,FALSE)) -> 
C39: =IF('W&B FORM'!M15="NOT ENOUGH FUEL TO COMPLETE THE TRIP","ADD FUEL",($L$3/60*$K$39)+('W&B FORM'!H13)) -> 3 | D39: =IF(C39="ADD FUEL","ADD FUEL",C39/3.785412) -> 0.7925161119 | E39: =IF(F3=2,IF(L2="","SELECT PLANE",IF(OR(C39="ADD FUEL",C39>L2,(C39+(L3/60*30)>L2)),"ADD "&ROUNDUP(C39+(L3/60*30)-L2,0)&" l FUEL",(C39+(L3/60*30)))),IF(F3=3,IF(L2="","SELECT PLANE",IF(OR(C39="ADD FUEL",C39>L2,(C39+(L3/60*45)>L2)),"ADD "&ROUNDUP(C39+(L3/60*45)-L2,0)&" l FUEL",(C39+(L3/60*45)))),IF(F3=1,"SELECT DAY OR NIGHT in F3"))) -> SELECT DAY OR NIGHT in F3 | G39: =MAX(E21,E23,E25,E27,E29,E31,E33,E35,E37)*60/J3 -> 0 | I39: =SUM(I20,I22,I24,I26,I28,I30,I32,I34,I36) -> 0 | J39: =IF(ISERROR((I39/K39)*60),"",ROUND((I39/K39)*60,0)) ->  | K39: =ROUND(SUM(K20:K37),0) -> 0
C40: Remaining | E40: Autonomy (incl. spare fuel) | G40: PNR (TIME) | I40: PNR (DIST) | J40: PET (DIST) | K40: PET (TIME) | AD40: Selected plane | AF40: =E2 -> D-EVIE | AG40: =VLOOKUP(AF40,AD13:AE17,2,FALSE) ->  | AI40: max fuel | AJ40: =60*2-(5.2*2) -> 109.6
C41: =IF(ISERROR((+L2)-C39),"",IF((+L2)-C39<0,"ADD FUEL",(+L2)-C39)) -> 106.6 | D41: =IF(C41="","",IF(C41="ADD FUEL","ADD FUEL",C41/3.785412)) -> 28.16073917 | E41: =IF(ISERROR(ROUND(((L2)/(L3)*60),0)),"",IF(TRUNC(ROUND(((L2)/(L3)*60),0)/60)<10,"0"&TRUNC(ROUND(((L2)/(L3)*60),0)/60)&":",TRUNC(ROUND(((L2)/(L3)*60),0)/60)&":")&IF(MOD(ROUND(((L2)/(L3)*60),0),60)<10,"0"&MOD(ROUND(((L2)/(L3)*60),0),60),MOD(ROUND(((L2)/(L3)*60),0),60))) -> 04:59 | G41: =IF(ISERROR(H42*AU68/(J39+AU68)),"",H42*AU68/(J39+AU68)) ->  | I41: =IF(ISERROR((G41/60)*J39),"",(G41/60)*J39) ->  | J41: =IF(ISERROR((I39*AU68)/(J39+AU68)),"",(I39*AU68)/(J39+AU68)) ->  | K41: =IF(ISERROR((J41/J39)*60),"",(J41/J39)*60) -> 
H42: =IF(ISERROR(ROUND(((L2)/(L3)*60)-('W&B FORM'!H13),0)),"",ROUND(((L2)/(L3)*60)-('W&B FORM'!H13),0)) -> 296 | AH42: l
B43: FREQUENCIES | F43: EN ROUTE & ARRIVAL INFORMATION
B44: BUB | C44: 114.6 | F44: REPORTING POINTS | I44: ALT | J44: NOTES
B45: AFI | C45: 114.9 | F45: =IF(B7="EBGB","LONDI","") ->  | I45: =IF(B7="EBGB","900 ft","") ->  | J45: =IF(F45="LONDI","BUB 114,60 TO 121°","") -> 
B46: BUN | C46: 110.6 | F46: =IF(F45="LONDI","EBGB-FIELD","") ->  | I46: =IF(F45="LONDI","900 ft","") ->  | J46: =IF(F45="LONDI","FOLLOW TR 126° MAG","") -> 
B47: NIK | C47: 117.4
B48: Brussels Info (civ) | C48: 126.9 | J48: Preflight checks:
B49: Belgo Info (mil) | C49: 129.325 | K49:  AIP-info/charts
B50: Dutch mil info | C50: 132.35 | F50: CIRCUIT ALT (MSL) | K50:  NOTAMS | AD50: Compass deviation table and calculation of d for specific Rm=Rw-V
B51: Lille info | C51: 126.475 | F51: =IF(B7="","",IF(B7="EBGB","800 ft",SUM(F7,1000))) ->  | K51:  METEO | AD51: FOR | AE51: 0 | AF51: =AE51+30 -> 30 | AG51: 60 | AH51: 90 | AI51: 120 | AJ51: 150 | AK51: 180 | AL51: 210 | AM51: 240 | AN51: 270 | AO51: 300 | AP51: 330 | AQ51: 360
B52: Amsterdam Info | C52: 124.3 | F52: Filing & closing flight plans | J52: =IF(AND(E3=2,LEFT(B6,2)<>LEFT(B7,2),B7<>""),"CLOSE YOUR FLIGHTPLAN AND REGISTER YOUR NAVIGATION FLIGHT ON ARRIVAL IN "&B7,IF(E3=2,"REGISTER YOUR NAVIGATION FLIGHT ON ARRIVAL IN "&B7,"")) ->  | AD52: STEER | AE52: 0 | AF52: 30 | AG52: 60 | AH52: 90 | AI52: 120 | AJ52: 150 | AK52: 180 | AL52: 210 | AM52: 240 | AN52: 270 | AO52: 300 | AP52: 330 | AQ52: 360
B53: Brussels VOLMET | C53: 127.805 | F53: Belgium | H53: + 32 2 206 25 40
B54: Emergency | C54: 121.5 | F54: France | H54: 0810 437 837 | U54: =Introduction!A2&" | "&Introduction!H2 -> remarks? tony.opsomer@gmail.com | version 2023-07-15
AE55: journey | AM55: journey Back
B56: This document is provided for secondary flightplanning and navigation only. It is the user/pilot's sole responsibility to verify the correctness of all information provided by this sheet. Thanks to Luc Verhoeven and Michaël Debusscher for their valuable contribute to this flight log | O56: =B56 -> This document is provided for secondary flightplanning and navigation only. It is the user/pilot's sole responsibility to verify the correctness of all information provided by this sheet. Thanks to Luc Verhoeven and Michaël Debusscher for their valuable contribute to this flight log | AE56: Rw | AF56: V | AG56: Rm=Rw-V | AH56: LOOK UP BETWEEN (FOR) | AJ56: LOOK UP BETWEEN (STEER) | AL56: d | AM56: Rw | AN56: V | AO56: Rm=Rw-V | AP56: LOOK UP BETWEEN (FOR) | AR56: LOOK UP BETWEEN (STEER) | AT56: d | AU56: GS back | AV56: EET back
AE57: =F20 -> 0 | AF57: =F21 -> 0 | AG57: =AE57-AF57 -> 0 | AH57: =TRUNC(AE57/30)*30 -> 0 | AI57: =AH57+30 -> 30 | AJ57: =HLOOKUP(AH57,$AE$51:$AQ$52,2,FALSE) -> 0 | AK57: =HLOOKUP(AI57,$AE$51:$AQ$52,2,FALSE) -> 30 | AL57: =AG57-(AJ57+((AG57-AH57)/(AI57-AH57)*(AK57-AJ57))) -> 0 | AM57: =IF(AE57+180>=360,AE57-180,AE57+180) -> 180 | AN57: =F21 -> 0 | AO57: =AM57-AN57 -> 180 | AP57: =TRUNC(AO57/30,0)*30 -> 180 | AQ57: =AP57+30 -> 210 | AR57: =HLOOKUP(AP57,$AD$51:$AP$52,2,FALSE) -> 180 | AS57: =HLOOKUP(AQ57,$AD$51:$AP$52,2,FALSE) -> 210 | AT57: =AO57-(AR57+((AO57-AP57)/(AQ57-AP57)*(AS57-AR57))) -> 0 | AU57: =ROUND($J$3*SQRT((1-((($E21/$J$3)*(SIN(((PI()/180)*$E20)-((PI()/180)*AM57))))^2)))-($E21*COS(((PI()/180)*$E20)-((PI()/180)*AM57))),0) ->  | AV57: =IF(ISERROR(ROUND(((I20/AU57)*60),1)),"",ROUND(((I20/AU57)*60),1)) -> 
AE58: =F22 -> 0 | AF58: =F23 ->  | AH58: 0 | AI58: 30 | AJ58: 0 | AK58: 30 | AM58: 180 | AN58: =F23 ->  | AU58: =ROUND($J$3*SQRT((1-((($E23/$J$3)*(SIN(((PI()/180)*$E22)-((PI()/180)*AM58))))^2)))-($E23*COS(((PI()/180)*$E22)-((PI()/180)*AM58))),0) ->  | AV58: =IF(ISERROR(ROUND(((I22/AU58)*60),1)),"",ROUND(((I22/AU58)*60),1)) -> 
AE59: =F24 -> 0 | AF59: =F25 ->  | AH59: 0 | AI59: 30 | AJ59: 0 | AK59: 30 | AM59: 180 | AN59: =F25 ->  | AU59: =ROUND($J$3*SQRT((1-((($E25/$J$3)*(SIN(((PI()/180)*$E24)-((PI()/180)*AM59))))^2)))-($E25*COS(((PI()/180)*$E24)-((PI()/180)*AM59))),0) ->  | AV59: =IF(ISERROR(ROUND(((I24/AU59)*60),1)),"",ROUND(((I24/AU59)*60),1)) -> 
AE60: =F26 -> 0 | AF60: =F27 ->  | AH60: 0 | AI60: 30 | AJ60: 0 | AK60: 30 | AM60: 180 | AN60: =F27 ->  | AU60: =ROUND($J$3*SQRT((1-((($E27/$J$3)*(SIN(((PI()/180)*$E26)-((PI()/180)*AM60))))^2)))-($E27*COS(((PI()/180)*$E26)-((PI()/180)*AM60))),0) ->  | AV60: =IF(ISERROR(ROUND(((I26/AU60)*60),1)),"",ROUND(((I26/AU60)*60),1)) -> 
AE61: =F28 -> 0 | AF61: =F29 ->  | AH61: 0 | AI61: 30 | AJ61: 0 | AK61: 30 | AM61: 180 | AN61: =F29 ->  | AU61: =ROUND($J$3*SQRT((1-((($E29/$J$3)*(SIN(((PI()/180)*$E28)-((PI()/180)*AM61))))^2)))-($E29*COS(((PI()/180)*$E28)-((PI()/180)*AM61))),0) ->  | AV61: =IF(ISERROR(ROUND(((I28/AU61)*60),1)),"",ROUND(((I28/AU61)*60),1)) -> 
AE62: =F30 -> 0 | AF62: =F31 ->  | AH62: 0 | AI62: 30 | AJ62: 0 | AK62: 30 | AM62: 180 | AN62: =F31 ->  | AU62: =ROUND($J$3*SQRT((1-((($E31/$J$3)*(SIN(((PI()/180)*$E30)-((PI()/180)*AM62))))^2)))-($E31*COS(((PI()/180)*$E30)-((PI()/180)*AM62))),0) ->  | AV62: =IF(ISERROR(ROUND(((I30/AU62)*60),1)),"",ROUND(((I30/AU62)*60),1)) -> 
AE63: =F32 -> 0 | AF63: =F33 ->  | AH63: 0 | AI63: 30 | AJ63: 0 | AK63: 30 | AM63: 180 | AN63: =F33 ->  | AU63: =ROUND($J$3*SQRT((1-((($E33/$J$3)*(SIN(((PI()/180)*$E31)-((PI()/180)*AM63))))^2)))-($E33*COS(((PI()/180)*$E31)-((PI()/180)*AM63))),0) ->  | AV63: =IF(ISERROR(ROUND(((I32/AU63)*60),1)),"",ROUND(((I32/AU63)*60),1)) -> 
AE64: =F34 -> 0 | AF64: =F35 ->  | AH64: 0 | AI64: 30 | AJ64: 0 | AK64: 30 | AM64: 180 | AN64: =F35 ->  | AU64: =ROUND($J$3*SQRT((1-((($E35/$J$3)*(SIN(((PI()/180)*$E34)-((PI()/180)*AM64))))^2)))-($E35*COS(((PI()/180)*$E34)-((PI()/180)*AM64))),0) ->  | AV64: =IF(ISERROR(ROUND(((I34/AU64)*60),1)),"",ROUND(((I34/AU64)*60),1)) -> 
AE65: =F36 -> 0 | AF65: =F37 ->  | AH65: 0 | AI65: 30 | AJ65: 0 | AK65: 30 | AM65: 180 | AN65: =F37 ->  | AU65: =ROUND($J$3*SQRT((1-((($E37/$J$3)*(SIN(((PI()/180)*$E36)-((PI()/180)*AM65))))^2)))-($E37*COS(((PI()/180)*$E36)-((PI()/180)*AM65))),0) ->  | AV65: =IF(ISERROR(ROUND(((I36/AU65)*60),1)),"",ROUND(((I36/AU65)*60),1)) -> 
AU67: mean GS back | AV67: TOTAL EET back
AU68: =(I39/AV68)*60 ->  | AV68: =SUM(AV57:AV65) -> 0

Sheet Performance FORM
B1: =Introduction!A2 -> remarks? tony.opsomer@gmail.com | I1: =Introduction!H2 -> version 2023-07-15
B2: Performance form D-EVIE | I2: BE.DTO.113
G5: Form validity checker | M5: Calculations
G6: Don't forget: always do a manual check on your data!!
B7: TAKE-OFF | C7: Take-off mass [kg] | G7: =IF(E7="","COMPLETE THE FORM",IF(OR(E7<550,E7>'Aquila performance specs'!C134),"WEIGHT OUT OF LIMITS","WEIGHT VALUE OK")) -> COMPLETE THE FORM
C8: Airport MSL altitude [ft] | G8: =IF(E8="","COMPLETE THE FORM","AIRPORT ALTITUDE OK") -> COMPLETE THE FORM | M8: Runway type dropdown list items | P8: Humidity dropdown list
C9: Airport QNH [hPa or mbar] | G9: =IF(E9="","COMPLETE THE FORM",IF(OR(E9<960,E9>1100),"INVALID QNH","QNH OK")) -> COMPLETE THE FORM | M9: DEFINE TYPE | P9: SELECT VALUE
C10: Airport pressure altitude [ft] | E10: =IF(OR(E8="",E9=""),"COMPLETE THE FORM",IF(E9>1013,(E8-(E9-1013)*30),(E8+(1013-E9)*30))) -> COMPLETE THE FORM | G10: =IF(OR(E10="",E10="COMPLETE THE FORM"),"COMPLETE THE FORM",IF(E10>8000,"NO DATA AVAILABLE","PRESSURE ALTITUDE OK")) -> COMPLETE THE FORM | M10: PAVED | P10: LOW
C11: OAT Temperature at airport [°C] | G11: =IF(E11="","COMPLETE THE FORM",IF(OR(E11>40,E11<-30),"TEMPERATURE OUT OF DATA RANGE","TEMPERATURE OK")) -> COMPLETE THE FORM | M11: DRY GRASS | P11: HIGH
C12: Air humidity at airport | E12: 1 | M12: SOFT GRASS
C13: Airport density altitude [ft] | E13: =IF(OR(E9="",E8="",E11=""),"COMPLETE THE FORM",E10+120*(E11-(15-(1.98/1000*E10)))) -> COMPLETE THE FORM | M13: MCP dropdown list items
C14: Wind at airport | L14: 1 | M14: SELECT VALUE
D15: Direction [°] | G15: =IF(E15="","COMPLETE THE FORM",IF(OR(E15<0,E15>359),"INVALID WIND DIRECTION","WIND DIRECTION OK")) -> COMPLETE THE FORM | I15: =IF(OR(E15="",E16="",E18=""),"COMPLETE THE FORM",IF(E16<0,"CHECK WIND VELOCITY",IF(ABS(Q45)>15,"CROSSWIND TOO STRONG",IF(Q44<-10,"TOO MUCH TAILWIND, USE OTHER RUNWAY DIRECTION",IF(Q44>20,"TOO MUCH HEADWIND",ROUND(ABS(Q44),1)&"kts "&R44&" AND "&ROUND(ABS(Q45),1)&"kts crosswind"))))) -> COMPLETE THE FORM | L15: 2 | M15: 0.55
D16: Velocity [kts] | G16: =IF(E16="","COMPLETE THE FORM",IF(E16<0,"INVALID WIND VELOCITY","WIND VELOCITY OK")) -> COMPLETE THE FORM | L16: 3 | M16: 0.65
C17: Runway in use | L17: 4 | M17: 0.75
D18: QFU | G18: =IF(E18="","COMPLETE THE FORM",IF(OR(E18<0,E18>35),"INVALID QFU","QFU OK")) -> COMPLETE THE FORM | L18: 5 | M18: 0.85
D19: type | E19: 1 | G19: =IF(E19="","",IF(E19=1,"DEFINE TYPE",IF(E19=2,"PAVED",IF(E19=3,"DRY GRASS",IF(E19=4,"SOFT GRASS"))))) -> DEFINE TYPE | L19: 6 | M19: MCP
D20: length [m] | G20: =IF(E20="","COMPLETE THE FORM",IF(E20<0,"INVALID RUNWAY LENGTH VALUE","RUNWAY LENGTH VALUE OK")) -> COMPLETE THE FORM
C21: Additional safety margin for take-off distance | E21: 0.5 | M21: Cruise power section (part 1)
C22: Take-off (flaps 17°, full power, 2260 RPM, dry & level runway) | M22: calculated press alt | N22: =E27 -> COMPLETE THE FORM | O22: desired %MCP | P22: =IF(E30=2, "55%",IF(E30=3,"65%",IF(E30=4,"75%",IF(E30=5,"85%",IF(E30=6,"MCP",""))))) ->  | Q22: real temp | R22: =O33 -> 0 | S22: temp correction factor for MAP | U22: =(R22-O28)/10*0.03 -> 
D23: ground roll [m] | E23: =IF(OR(E10="COMPLETE THE FORM",E7="",E20="",E11="",E21="",E18="",E16="",E15="",E12=1,E19=1,G19="DEFINE TYPE"),"COMPLETE THE FORM",IF(OR(ISERROR(T100),G7="WEIGHT OUT OF LIMITS",G10="NO DATA AVAILABLE",G11="TEMPERATURE OUT OF DATA RANGE",G9="INVALID QNH"),"NO DATA AVAILABLE",R99)) -> COMPLETE THE FORM | G23: =IF(OR(E10="COMPLETE THE FORM",E7="",E20="",E11="",E21="",E18="",E16="",E15="",E12=1,G19="DEFINE TYPE"),"COMPLETE THE FORM",IF(OR(ISERROR(T100),G7="WEIGHT OUT OF LIMITS",G10="NO DATA AVAILABLE",G11="TEMPERATURE OUT OF DATA RANGE",G9="INVALID QNH"),"NO DATA AVAILABLE",IF(OR(Q44<-10,Q44>20),"TOO MUCH TAIL/HEAD-WIND",IF(Q45>15,"CROSSWIND TOO STRONG",IF(E24<=E20,"RUNWAY LENGTH SUFFICIENT","RUNWAY TOO SHORT"))))) -> COMPLETE THE FORM | N23: table column index: | P23: =IF(P22="55%",3,IF(P22="65%",6,IF(P22="75%",9,IF(P22="85%",12,IF(P22="MCP",15,""))))) ->  | Q23: =P23+1 ->  | R23: =P23+2 ->  | S23: temp correction factor for F/F | U23: =(R22-O28)/10*0.05 -> 
D24: total to clear 50ft OBS [m] | E24: =IF(OR(E10="COMPLETE THE FORM",E7="",E20="",E11="",E21="",E18="",E16="",E15="",E19=1,E12=1,G19="DEFINE TYPE"),"COMPLETE THE FORM",IF(OR(ISERROR(T100),G7="WEIGHT OUT OF LIMITS",G10="NO DATA AVAILABLE",G11="TEMPERATURE OUT OF DATA RANGE",G9="INVALID QNH"),"NO DATA AVAILABLE",T100)) -> COMPLETE THE FORM | M24: from data in table
B25: CRUISE | C25: MSL Cruising altitude [ft] | G25: =IF(E25="","COMPLETE THE FORM",IF(E25<0,"CRUISING ALTITUDE MUST GREATER THAN 0 FT","CRUISING ALTITUDE OK")) -> COMPLETE THE FORM | N25: press alt | O25: ISA temp | P25: =P22 -> 
C26: Regional QNH [hPa or mbar] | G26: =IF(E26="","COMPLETE THE FORM",IF(OR(E26<960,E26>1100),"INVALID QNH","QNH OK")) -> COMPLETE THE FORM | P26: RPM | Q26: MAP | R26: F/F
C27: Pressure altitude [ft] | E27: =IF(OR(E25="",E26=""),"COMPLETE THE FORM",IF(E26>1013,(E25-(E26-1013)*30),(E25+(1013-E26)*30))) -> COMPLETE THE FORM | G27: =IF(OR(E27="",E27="COMPLETE THE FORM"),"COMPLETE THE FORM",IF(OR(E27<0,E27>12000),"NO DATA FOUND","PRESSURE ALTITUDE OK")) -> COMPLETE THE FORM | N27: =IF(MOD(TRUNC(N22/1000),2)=0,TRUNC(N22/1000)*1000, (TRUNC(N22/1000)-1)*1000) ->  | O27: =VLOOKUP(N27,'Aquila performance specs'!$B$6:$C$12,2,FALSE) ->  | P27: =VLOOKUP(N27,'Aquila performance specs'!$B$6:$R$12,'Performance FORM'!P23,FALSE) ->  | Q27: =VLOOKUP(N27,'Aquila performance specs'!$B$6:$R$12,'Performance FORM'!Q23,FALSE) ->  | R27: =VLOOKUP(N27,'Aquila performance specs'!$B$6:$R$12,'Performance FORM'!R23,FALSE) -> 
C28: OAT Temperature at cruising altitude [°C] | G28: =IF(OR(E28="",E25="",E26=""),"COMPLETE THE FORM","TEMPERATURE OK") -> COMPLETE THE FORM | N28: =IF(N22<0,#VALUE!,N22) -> COMPLETE THE FORM | O28: =IF(N28=N27,O27,O27+($N$28-$N$27)/($N$29-$N$27)*(O29-O27)) ->  | P28: =IF(N28=N27,P27,P27+($N$28-$N$27)/($N$29-$N$27)*(P29-P27)) ->  | Q28: =IF(N28=N27,Q27,Q27+($N$28-$N$27)/($N$29-$N$27)*(Q29-Q27)) ->  | R28: =IF(N28=N27,R27,R27+($N$28-$N$27)/($N$29-$N$27)*(R29-R27)) -> 
C29: Density altitude [ft] | E29: =IF(OR(E25="",E26="",E28=""),"COMPLETE THE FORM",E27+120*(E28-(15-(1.98/1000*E27)))) -> COMPLETE THE FORM | G29: =IF(OR(E29="",E26="",E27=""),"COMPLETE THE FORM",IF(OR(E29<-2000,E29>12000),"DENSITY ALTITUDE OUT OF DATA RANGE","DENSITY ALTITUDE OK")) -> COMPLETE THE FORM | N29: =N27+2000 ->  | O29: =VLOOKUP(N29,'Aquila performance specs'!$B$6:$C$12,2,FALSE) ->  | P29: =VLOOKUP(N29,'Aquila performance specs'!$B$6:$R$12,'Performance FORM'!P23,FALSE) ->  | Q29: =VLOOKUP(N29,'Aquila performance specs'!$B$6:$R$12,'Performance FORM'!Q23,FALSE) ->  | R29: =VLOOKUP(N29,'Aquila performance specs'!$B$6:$R$12,'Performance FORM'!R23,FALSE) -> 
C30: Desired % MCP | E30: 1 | G30: =IF(E30=1, "SELECT VALUE", "% MCP OK") -> SELECT VALUE
C31: Cruise power settings (airplane mass 750 kg, 0° flaps, wheel fairings installed)
D32: RPM | E32: =IF(OR(E26="",E25="",E28="",E30=1),"COMPLETE THE FORM",IF(OR(G26="INVALID QNH",G27="NO DATA FOUND"),"NO DATA AVAILABLE",IF(ISERROR(P33),"NO DATA AVAILABLE",P33))) -> COMPLETE THE FORM | G32: =IF(OR(E25="",E26="",E28="",E30=1),"COMPLETE THE FORM",IF(OR(G26="INVALID QNH",G27="NO DATA FOUND"),"NO DATA AVAILABLE",IF(OR(ISERROR(P33),ISERROR(Q33),ISERROR(R33)),"CHOOSE A LOWER DESIRED %MCP AND/OR CHECK DENSITY ALTITUDE","POWER SETTINGS OK"))) -> COMPLETE THE FORM | N32: pres alt | O32: real temp | P32: RPM | Q32: MAP | R32: F/F
D33: MAP | E33: =IF(OR(E26="",E25="",E28="",E30=1),"COMPLETE THE FORM",IF(OR(G26="INVALID QNH",G27="NO DATA FOUND"),"NO DATA AVAILABLE",IF(ISERROR(Q33),"NO DATA AVAILABLE",Q33))) -> COMPLETE THE FORM | N33: =N28 -> COMPLETE THE FORM | O33: =E28 -> 0 | P33: =IF(P28="N/B",#VALUE!,P28) ->  | Q33: =Q28+(Q28*U22) ->  | R33: =R28+(R28*U23) -> 
D34: Fuel consumption [l/h] | E34: =IF(OR(E26="",E25="",E28="",E30=1),"COMPLETE THE FORM",IF(OR(G26="INVALID QNH",G27="NO DATA FOUND"),"NO DATA AVAILABLE",IF(ISERROR(R33),"NO DATA AVAILABLE",R33))) -> COMPLETE THE FORM
D35: KTAS [kts] | E35: =IF(OR(E26="",E25="",E28="",E30=1),"COMPLETE THE FORM",IF(T186="","NO DATA AVAILABLE",IF(OR(ISERROR(P33),ISERROR(Q33),ISERROR(R33)),"NO DATA AVAILABLE",T186))) -> COMPLETE THE FORM
B36: LANDING | C36: Landing mass [kg] | G36: =IF(E36="","COMPLETE THE FORM",IF(OR(E36<550,E36>'Aquila performance specs'!C134),"WEIGHT OUT OF LIMITS","WEIGHT VALUE OK")) -> COMPLETE THE FORM | M36: Takeoff section
C37: Airport MSL altitude [ft] | G37: =IF(E37="","COMPLETE THE FORM","AIRPORT ALTITUDE OK") -> COMPLETE THE FORM
C38: Airport QNH [hPa or mbar] | G38: =IF(E38="","COMPLETE THE FORM",IF(OR(E38<960,E38>1100),"INVALID QNH","QNH OK")) -> COMPLETE THE FORM | M38: calculation of head/tail/crosswind
C39: Airport pressure altitude [ft] | E39: =IF(OR(E37="",E38=""),"COMPLETE THE FORM",IF(E38>1013,(E37-(E38-1013)*30),(E37+(1013-E38)*30))) -> COMPLETE THE FORM | G39: =IF(OR(E39="",E39="COMPLETE THE FORM"),"COMPLETE THE FORM",IF(E39>8000,"NO DATA AVAILABLE","PRESSURE ALTITUDE OK")) -> COMPLETE THE FORM | N39: QFU | O39: =E18 -> 0 | P39: -> runway heading | R39: =O39*10 -> 0
C40: OAT Temperature at airport [°C] | G40: =IF(E40="","COMPLETE THE FORM",IF(OR(E40>40,E40<-30),"TEMPERATURE OUT OF DATA RANGE","TEMPERATURE OK")) -> COMPLETE THE FORM | N40: wind dir | O40: =E15 -> 0
C41: Airport density altitude [ft] | E41: =IF(OR(E38="",E37="",E40=""),"COMPLETE THE FORM",E39+120*(E40-(15-(1.98/1000*E39)))) -> COMPLETE THE FORM | N41: wind velocity | O41: =E16 -> 0
C42: Wind at airport
D43: Direction [°] | G43: =IF(E43="","COMPLETE THE FORM",IF(OR(E43<0,E43>359),"INVALID WIND DIRECTION","WIND DIRECTION OK")) -> COMPLETE THE FORM | I43: =IF(OR(E43="",E44="",E46=""),"COMPLETE THE FORM",IF(E44<0,"CHECK WIND VELOCITY",IF(ABS(Q113)>15,"CROSSWIND TOO STRONG",IF(Q112<-10,"TOO MUCH TAILWIND, USE OTHER RUNWAY DIRECTION",IF(Q112>20,"TOO MUCH HEADWIND",ROUND(ABS(Q112),1)&"kts "&R112&" AND "&ROUND(ABS(Q113),1)&"kts crosswind"))))) -> COMPLETE THE FORM | N43: angle between runway & wind dir | Q43: =ABS(R39-O40) -> 0
D44: Velocity [kts] | G44: =IF(E44="","COMPLETE THE FORM",IF(E44<0,"INVALID WIND VELOCITY","WIND VELOCITY OK")) -> COMPLETE THE FORM | P44: head/tailwind | Q44: =COS(Q43*PI()/180)*O41 -> 0 | R44: =IF(Q44>=0,"headwind","tailwind") -> headwind
C45: Runway in use | P45: crosswind | Q45: =SIN(Q43*PI()/180)*O41 -> 0
D46: QFU | G46: =IF(E46="","COMPLETE THE FORM",IF(OR(E46<0,E46>35),"INVALID QFU","QFU OK")) -> COMPLETE THE FORM | M46: calculation of performance data
D47: type | E47: 1 | G47: =IF(E47="","",IF(E47=1,"DEFINE TYPE",IF(E47=2,"PAVED",IF(E47=3,"DRY GRASS")))) -> DEFINE TYPE | N47: calc. Press alt | O47: =IF(E10<0,0,E10) -> COMPLETE THE FORM | P47: =IF(E10<0,"PRESS ALTITUDE < 0 -> PRESS ALTITUDE SET TO 0 ft TO CONTINUE CALCULATIONS","") -> 
D48: length [m] | G48: =IF(E48="","COMPLETE THE FORM",IF(E48<0,"INVALID RUNWAY LENGTH VALUE","RUNWAY LENGTH VALUE OK")) -> COMPLETE THE FORM | N48: OAT | O48: =E11 -> 0
C49: Additional safety margin for landing distance | E49: 0.5
C50: Landing (flaps 35°, idle power, low pitch, maximum braking, dry & level runway) | N50: from OAT data in table
D51: ground roll [m] | E51: =IF(OR(E39="COMPLETE THE FORM",E36="",E40="",E43="",E44="",E46="",E49="",E48="",E47=1,G47="DEFINE TYPE"),"COMPLETE THE FORM",IF(OR(ISERROR(T167),G39="NO DATA AVAILABLE",G36="WEIGHT OUT OF LIMITS",G40="TEMPERATURE OUT OF DATA RANGE",G38="INVALID QNH"),"NO DATA AVAILABLE",R166)) -> COMPLETE THE FORM | G51: =IF(OR(E39="COMPLETE THE FORM",E36="",E40="",E43="",E44="",E46="",E49="",E48="",E47=1,G47="DEFINE TYPE"),"COMPLETE THE FORM",IF(OR(ISERROR(T167),G39="NO DATA AVAILABLE",G36="WEIGHT OUT OF LIMITS",G40="TEMPERATURE OUT OF DATA RANGE",G38="INVALID QNH"),"NO DATA AVAILABLE",IF(OR(Q112<-10,Q112>20),"TOO MUCH TAIL/HEAD-WIND",IF(Q113>15,"CROSSWIND TOO STRONG",IF(E52<=E48,"RUNWAY LENGTH SUFFICIENT","RUNWAY TOO SHORT"))))) -> COMPLETE THE FORM | O51: -30 | P51: =IF(OR(O48<O51,O48>Q51),#VALUE!,O48) -> 0 | Q51: 40 | S51: GRAPH 1
D52: total to clear 50ft [m] | E52: =IF(OR(E39="COMPLETE THE FORM",E36="",E40="",E43="",E44="",E46="",E49="",E48="",E47=1,G47="DEFINE TYPE"),"COMPLETE THE FORM",IF(OR(ISERROR(T167),G39="NO DATA AVAILABLE",G36="WEIGHT OUT OF LIMITS",G40="TEMPERATURE OUT OF DATA RANGE",G38="INVALID QNH"),"NO DATA AVAILABLE",T167)) -> COMPLETE THE FORM | N52: =IF(TRUNC(O47/1000)=0,0,IF(MOD(TRUNC(O47/1000),2)=0,TRUNC(O47/1000)*1000,(TRUNC(O47/1000)-1)*1000)) ->  | O52: =VLOOKUP(N52,'Aquila performance specs'!B19:D23,2,FALSE) ->  | P52: =O52+($P$51-$O$51)/($Q$51-$O$51)*(Q52-O52) ->  | Q52: =VLOOKUP(N52,'Aquila performance specs'!B19:D23,3,FALSE) ->  | S52: OAT | T52: =O48 -> 0
N53: =O47 -> COMPLETE THE FORM | O53: =IF(N53=N52,O52,O52+($N$53-$N$52)/($N$54-$N$52)*(O54-O52)) ->  | P53: =IF(N53=N52,P52,P52+($N$53-$N$52)/($N$54-$N$52)*(P54-P52)) ->  | Q53: =IF(N53=N52,Q52,Q52+($N$53-$N$52)/($N$54-$N$52)*(Q54-Q52)) ->  | S53: Y-value | T53: =P53 -> 
B54: This document is provided for secondary flightplanning and navigation only. It is the user/pilot's sole responsibility to verify the correctness of all information provided by this sheet. | N54: =IF(TRUNC(O47/1000)=0,2000,IF(MOD(TRUNC(O47/1000),2)=0,(TRUNC(O47/1000)+2)*1000,(TRUNC(O47/1000)+1)*1000)) ->  | O54: =VLOOKUP(N54,'Aquila performance specs'!B19:D23,2,FALSE) ->  | P54: =O54+($P$51-$O$51)/($Q$51-$O$51)*(Q54-O54) ->  | Q54: =VLOOKUP(N54,'Aquila performance specs'!B19:D23,3,FALSE) -> 
N56: from mass data in table
N57: row index | O57: 750 | P57: =IF(OR(E7<Q57,E7>O57),#VALUE!,E7) ->  | Q57: 550 | S57: GRAPH 2
N58: =VLOOKUP(O58,'Aquila performance specs'!I19:K26,3,FALSE) ->  | O58: =IF(P53<'Aquila performance specs'!I19,'Aquila performance specs'!I19,VLOOKUP(P53,'Aquila performance specs'!I19:I26,1,TRUE)) ->  | P58: =O58+($P$57-$O$57)/($Q$57-$O$57)*(Q58-O58) ->  | Q58: =VLOOKUP(N58,'Aquila performance specs'!H19:J26,3,FALSE) ->  | S58: mass | T58: =P57 -> 
O59: =P53 ->  | P59: =IF(O59=O58,P58,P58+($O$59-$O$58)/($O$60-$O$58)*(P60-P58)) ->  | Q59: =IF(O59=O58,Q58,Q58+($O$59-$O$58)/($O$60-$O$58)*(Q60-Q58)) ->  | S59: Y-value | T59: =P59 -> 
N60: =N58+1 ->  | O60: =VLOOKUP(N60,'Aquila performance specs'!H19:J26,2,FALSE) ->  | P60: =O60+($P$57-$O$57)/($Q$57-$O$57)*(Q60-O60) ->  | Q60: =VLOOKUP(N60,'Aquila performance specs'!H19:J26,3,FALSE) -> 
N62: from wind data in table
N63: col ind | O63: =HLOOKUP(O64,'Aquila performance specs'!P19:T25,7,FALSE) -> 2 | Q63: =O63+1 -> 3 | S63: GRAPH 3
O64: =IF(AND(T64>=0,T64<=20),LOOKUP(T64,'Aquila performance specs'!Q19:T19),IF(AND(T64<0,T64>=-10),'Aquila performance specs'!P19,"ERROR")) -> 0 | P64: =IF(T64=O64,T64,IF(OR(T64<O64,T64>Q64),#VALUE!,T64)) -> 0 | Q64: =HLOOKUP(O63+1,'Aquila performance specs'!P18:T24,2,FALSE) -> 10 | S64: windcomp | T64: =Q44 -> 0
O65: =HLOOKUP($O$63,'Aquila performance specs'!$P$18:$T$24,3,FALSE) -> 120 | P65: =IF(O64=P64,O65,O65+($P$64-$O$64)/($Q$64-$O$64)*(Q65-O65)) -> 120 | Q65: =HLOOKUP($Q$63,'Aquila performance specs'!$P$18:$T$24,3,FALSE) -> 92 | S65: Y-value | T65: =T76 -> 
O66: =HLOOKUP($O$63,'Aquila performance specs'!$P$18:$T$24,4,FALSE) -> 204 | P66: =IF(O64=P64,O66,O66+($P$64-$O$64)/($Q$64-$O$64)*(Q66-O66)) -> 204 | Q66: =HLOOKUP($Q$63,'Aquila performance specs'!$P$18:$T$24,4,FALSE) -> 160
O67: =HLOOKUP($O$63,'Aquila performance specs'!$P$18:$T$24,5,FALSE) -> 290 | P67: =IF(O65=P65,O67,O67+($P$64-$O$64)/($Q$64-$O$64)*(Q67-O67)) -> 290 | Q67: =HLOOKUP($Q$63,'Aquila performance specs'!$P$18:$T$24,5,FALSE) -> 222
O68: =HLOOKUP($O$63,'Aquila performance specs'!$P$18:$T$24,6,FALSE) -> 398 | P68: =IF(O65=P65,O68,O68+($P$64-$O$64)/($Q$64-$O$64)*(Q68-O68)) -> 398 | Q68: =HLOOKUP($Q$63,'Aquila performance specs'!$P$18:$T$24,6,FALSE) -> 300
O69: =HLOOKUP($O$63,'Aquila performance specs'!$P$18:$T$24,7,FALSE) -> 517 | P69: =IF(O64=P64,O69,O69+($P$64-$O$64)/($Q$64-$O$64)*(Q69-O69)) -> 517 | Q69: =HLOOKUP($Q$63,'Aquila performance specs'!$P$18:$T$24,7,FALSE) -> 397
O72: search for Y-value from GRAPH 2 in wind table | R72: =P59 -> 
O73: 0 | P73: =P64 -> 0 | V73: for interpolated graph (yellow)
O74: ='Aquila performance specs'!Q20 -> 120 | P74: 120 | R74: row index | S74: 0 | T74: =P73 -> 0 | V74: =R74 -> row index | W74: -10 | X74: 0 | Y74: 10 | Z74: 15 | AA74: 20
O75: ='Aquila performance specs'!Q21 -> 204 | P75: 204 | R75: =VLOOKUP(S75,'Aquila performance specs'!$Q$20:$U$24,5,FALSE) ->  | S75: =LOOKUP(R72,O74:O78) ->  | T75: =VLOOKUP(S75,$O$74:$P$78,2,FALSE) ->  | V75: =R75 ->  | W75: =VLOOKUP($V$75,'Aquila performance specs'!$O$20:$T$24,2,FALSE) ->  | X75: =VLOOKUP($V$75,'Aquila performance specs'!$O$20:$T$24,3,FALSE) ->  | Y75: =VLOOKUP($V$75,'Aquila performance specs'!$O$20:$T$24,4,FALSE) ->  | Z75: =VLOOKUP($V$75,'Aquila performance specs'!$O$20:$T$24,5,FALSE) ->  | AA75: =VLOOKUP($V$75,'Aquila performance specs'!$O$20:$T$24,6,FALSE) -> 
O76: ='Aquila performance specs'!Q22 -> 290 | P76: 290 | Q76: -> | S76: =R72 ->  | T76: =IF(S76=S75,T75,T75+(S76-S75)/(S77-S75)*(T77-T75)) ->  | W76: =W75+(X76-X75)/(X77-X75)*(W77-W75) ->  | X76: =S76 ->  | Y76: =Y75+(X76-X75)/(X77-X75)*(Y77-Y75) ->  | Z76: =Z75+(X76-X75)/(X77-X75)*(Z77-Z75) ->  | AA76: =AA75+(X76-X75)/(X77-X75)*(AA77-AA75) -> 
O77: ='Aquila performance specs'!Q23 -> 398 | P77: 398 | R77: =R75+1 ->  | S77: =VLOOKUP(R77,'Aquila performance specs'!$O$20:$Q$24,3,FALSE) ->  | T77: =VLOOKUP(S77,$O$74:$P$78,2,FALSE) ->  | V77: =R77 ->  | W77: =VLOOKUP($V$77,'Aquila performance specs'!$O$20:$T$24,2,FALSE) ->  | X77: =VLOOKUP($V$77,'Aquila performance specs'!$O$20:$T$24,3,FALSE) ->  | Y77: =VLOOKUP($V$77,'Aquila performance specs'!$O$20:$T$24,4,FALSE) ->  | Z77: =VLOOKUP($V$77,'Aquila performance specs'!$O$20:$T$24,5,FALSE) ->  | AA77: =VLOOKUP($V$77,'Aquila performance specs'!$O$20:$T$24,6,FALSE) -> 
O78: ='Aquila performance specs'!Q24 -> 517 | P78: 517
N80: from take-off distance in table
O81: look for Y-value: | P81: =T65 ->  | T81: 0 | U81: 50
T82: ='Aquila performance specs'!W19 -> 120 | U82: ='Aquila performance specs'!X19 -> 222
T83: ='Aquila performance specs'!W20 -> 152 | U83: ='Aquila performance specs'!X20 -> 280
O84: row index | T84: ='Aquila performance specs'!W21 -> 180 | U84: ='Aquila performance specs'!X21 -> 318
O85: =VLOOKUP(P85,'Aquila performance specs'!$W$19:$Y$32,3,FALSE) ->  | P85: =LOOKUP(P81,T82:T95) ->  | Q85: =VLOOKUP(P85,T82:U95,2,FALSE) ->  | T85: ='Aquila performance specs'!W22 -> 211 | U85: ='Aquila performance specs'!X22 -> 400
P86: =P81 ->  | Q86: NO INTERMEDIATE DATA MAY BE USED | T86: ='Aquila performance specs'!W23 -> 240 | U86: ='Aquila performance specs'!X23 -> 444
O87: =O85+1 ->  | P87: =IF(P81<T82,T82,VLOOKUP(O87,'Aquila performance specs'!V19:W32,2,FALSE)) ->  | Q87: =VLOOKUP(P87,T82:U95,2,FALSE) ->  | T87: ='Aquila performance specs'!W24 -> 270 | U87: ='Aquila performance specs'!X24 -> 500
T88: ='Aquila performance specs'!W25 -> 300 | U88: ='Aquila performance specs'!X25 -> 560
T89: ='Aquila performance specs'!W26 -> 335 | U89: ='Aquila performance specs'!X26 -> 617
O90: Ground roll required: | Q90: =P87&" m" ->  | T90: ='Aquila performance specs'!W27 -> 360 | U90: ='Aquila performance specs'!X27 -> 670
O91: Take-off distance required (over 50 ft obstacle): | R91: =Q87&" m" ->  | T91: ='Aquila performance specs'!W28 -> 390 | U91: ='Aquila performance specs'!X28 -> 728
T92: ='Aquila performance specs'!W29 -> 420 | U92: ='Aquila performance specs'!X29 -> 780
O93: additional correction factors | T93: ='Aquila performance specs'!W30 -> 450 | U93: ='Aquila performance specs'!X30 -> 840
P94: type of runway | Q94: =IF(E19=2,"PAVED",IF(E19=3,"DRY GRASS",IF(E19=4,"SOFT GRASS","ERROR"))) -> ERROR | R94: -> | S94: =IF(Q94="PAVED",0%,IF(Q94="DRY GRASS",25%,IF(Q94="SOFT GRASS",40%,))) -> 0 | T94: ='Aquila performance specs'!W31 -> 480 | U94: ='Aquila performance specs'!X31 -> 900
P95: air humidity | Q95: =IF(E12=2,"LOW",IF(E12=3,"HIGH")) -> FALSE | R95: -> | S95: =IF(Q95="LOW",0%,IF(Q95="HIGH",10%)) -> FALSE | T95: ='Aquila performance specs'!W32 -> 517 | U95: ='Aquila performance specs'!X32 -> 960
P96: safety factor | Q96: =E21 -> 0.5
P97: TOTAL additional correction factor | S97: =SUM(Q96,S94,S95) -> 0.5
O99: ground roll required (with safety factor) | R99: =P87*(1+S97) ->  | S99: m
O100: Take-off distance required (over 50 ft obstacle with safety factor) | T100: =Q87*(1+S97) ->  | U100: m
M104: Landing section
M106: calculation of head/tail/crosswind
N107: QFU | O107: =E46 -> 0 | P107: -> runway heading | R107: =O107*10 -> 0
N108: wind dir | O108: =E43 -> 0
N109: wind velocity | O109: =E44 -> 0
N111: angle between runway & wind dir | Q111: =ABS(R107-O108) -> 0
P112: head/tailwind | Q112: =COS(Q111*PI()/180)*O109 -> 0 | R112: =IF(Q112>=0,"headwind","tailwind") -> headwind
P113: crosswind | Q113: =SIN(Q111*PI()/180)*O109 -> 0
M114: calculation of performance data
N115: calc. Press alt | O115: =IF(E39<0,0,E39) -> COMPLETE THE FORM | P115: =IF(E39<0,"PRESS ALTITUDE < 0 -> PRESS ALTITUDE SET TO 0 ft TO CONTINUE CALCULATIONS","") -> 
N116: OAT | O116: =E40 -> 0
N118: from OAT data in table
O119: -30 | P119: =IF(OR(O116<O119,O116>Q119),#VALUE!,O116) -> 0 | Q119: 40 | S119: GRAPH 1
N120: =IF(MOD(TRUNC(O115/1000),2)=0,TRUNC(O115/1000)*1000,(TRUNC(O115/1000)-1)*1000) ->  | O120: =VLOOKUP(N120,'Aquila performance specs'!$B$77:$D$81,2,FALSE) ->  | P120: =O120+(P119-O119)/(Q119-O119)*(Q120-O120) ->  | Q120: =VLOOKUP(N120,'Aquila performance specs'!$B$77:$D$81,3,FALSE) ->  | S120: OAT | T120: =O116 -> 0
N121: =O115 -> COMPLETE THE FORM | O121: =IF(N121=N120,O120,O120+(N121-N120)/(N122-N120)*(O122-O120)) ->  | P121: =IF(N121=N120,P120,P120+(N121-N120)/(N122-N120)*(P122-P120)) ->  | Q121: =IF(N121=N120,Q120,Q120+(N121-N120)/(N122-N120)*(Q122-Q120)) ->  | S121: Y-value | T121: =P121 -> 
N122: =IF(MOD(TRUNC(O115/1000),2)=0,(TRUNC(O115/1000)+2)*1000,(TRUNC(O115/1000)+1)*1000) ->  | O122: =VLOOKUP(N122,'Aquila performance specs'!$B$77:$D$81,2,FALSE) ->  | P122: =O122+(P119-O119)/(Q119-O119)*(Q122-O122) ->  | Q122: =VLOOKUP(N122,'Aquila performance specs'!$B$77:$D$81,3,FALSE) -> 
N124: from mass data in table
N125: row index | O125: 750 | P125: =IF(OR(E36<Q125,E36>O125),#VALUE!,E36) ->  | Q125: 550 | S125: GRAPH 2
N126: =VLOOKUP(O126,'Aquila performance specs'!I77:K84,3,FALSE) ->  | O126: =IF(P121<'Aquila performance specs'!I77,'Aquila performance specs'!I77,VLOOKUP(P121,'Aquila performance specs'!I77:I84,1,TRUE)) ->  | P126: =O126+(P125-O125)/(Q125-O125)*(Q126-O126) ->  | Q126: =VLOOKUP(N126,'Aquila performance specs'!H77:J84,3,FALSE) ->  | S126: mass | T126: =P125 -> 
O127: =P121 ->  | P127: =IF(O127=O126,P126,P126+(O127-O126)/(O128-O126)*(P128-P126)) ->  | Q127: =IF(O127=O126,Q126,Q126+(O127-O126)/(O128-O126)*(Q128-Q126)) ->  | S127: Y-value | T127: =P127 -> 
N128: =N126+1 ->  | O128: =VLOOKUP(N128,'Aquila performance specs'!H77:J84,2,FALSE) ->  | P128: =O128+(P125-O125)/(Q125-O125)*(Q128-O128) ->  | Q128: =VLOOKUP(N128,'Aquila performance specs'!H77:J84,3,FALSE) -> 
N130: from wind data in table
N131: col ind | O131: =IF(P132<0,1,HLOOKUP(O132,'Aquila performance specs'!Q77:T83,7,FALSE)) -> 3 | Q131: =O131+1 -> 4 | S131: GRAPH 3
O132: =IF(AND(T132>=0,T132<=20),LOOKUP(T132,'Aquila performance specs'!Q77:T77),IF(AND(T132<0,T132>=-10),-('Aquila performance specs'!O77),"ERROR")) -> 0 | P132: =T132 -> 0 | Q132: =HLOOKUP(Q131,'Aquila performance specs'!O76:T82,2,FALSE) -> 10 | S132: windcomp | T132: =Q112 -> 0
O133: =HLOOKUP($O$131,'Aquila performance specs'!O76:T82,3,FALSE) -> 360 | P133: =IF(O132=P132,O133,O133+(P132-O132)/(Q132-O132)*(Q133-O133)) -> 360 | Q133: =HLOOKUP($Q$131,'Aquila performance specs'!O76:T82,3,FALSE) -> 275 | S133: Y-value | T133: =T144 -> 
O134: =HLOOKUP($O$131,'Aquila performance specs'!O76:T82,4,FALSE) -> 525 | P134: =IF(O132=P132,O134,O134+(P132-O132)/(Q132-O132)*(Q134-O134)) -> 525 | Q134: =HLOOKUP($Q$131,'Aquila performance specs'!O76:T82,4,FALSE) -> 400
O135: =HLOOKUP($O$131,'Aquila performance specs'!O76:T82,5,FALSE) -> 645 | P135: =IF(O132=P132,O135,O135+(P132-O132)/(Q132-O132)*(Q135-O135)) -> 645 | Q135: =HLOOKUP($Q$131,'Aquila performance specs'!O76:T82,5,FALSE) -> 500
O136: =HLOOKUP($O$131,'Aquila performance specs'!O76:T82,6,FALSE) -> 745 | P136: =IF(O132=P132,O136,O136+(P132-O132)/(Q132-O132)*(Q136-O136)) -> 745 | Q136: =HLOOKUP($Q$131,'Aquila performance specs'!O76:T82,6,FALSE) -> 570
O137: =HLOOKUP($O$131,'Aquila performance specs'!O76:T82,7,FALSE) -> 840 | P137: =IF(O132=P132,O137,O137+(P132-O132)/(Q132-O132)*(Q137-O137)) -> 840 | Q137: =HLOOKUP($Q$131,'Aquila performance specs'!O76:T82,7,FALSE) -> 645
O140: search for Y-value from GRAPH 2 in wind table | R140: =P127 -> 
O141: 0 | P141: =P132 -> 0 | V141: for interpolated graph (yellow)
O142: =IF($T$132<0,'Aquila performance specs'!P78,'Aquila performance specs'!Q78) -> 360 | P142: 360 | R142: row index | S142: 0 | T142: =P141 -> 0 | V142: =R142 -> row index | W142: -10 | X142: 0 | Y142: 0 | Z142: 10 | AA142: 15 | AB142: 20
O143: =IF($T$132<0,'Aquila performance specs'!P79,'Aquila performance specs'!Q79) -> 525 | P143: 525 | R143: =IF('Performance FORM'!T132<0,VLOOKUP(S143,'Aquila performance specs'!P78:U82,6,FALSE),VLOOKUP(S143,'Aquila performance specs'!Q78:U82,5,FALSE)) ->  | S143: =LOOKUP(R140,O142:O146) ->  | T143: =VLOOKUP(S143,O142:P146,2,FALSE) ->  | V143: =R143 ->  | W143: =VLOOKUP($V$143,'Aquila performance specs'!$N$78:$T$82,2,FALSE) ->  | X143: =VLOOKUP($V$143,'Aquila performance specs'!$N$78:$T$82,3,FALSE) ->  | Y143: =VLOOKUP($V$143,'Aquila performance specs'!$N$78:$T$82,4,FALSE) ->  | Z143: =VLOOKUP($V$143,'Aquila performance specs'!$N$78:$T$82,5,FALSE) ->  | AA143: =VLOOKUP($V$143,'Aquila performance specs'!$N$78:$T$82,6,FALSE) ->  | AB143: =VLOOKUP($V$143,'Aquila performance specs'!$N$78:$T$82,7,FALSE) -> 
O144: =IF($T$132<0,'Aquila performance specs'!P80,'Aquila performance specs'!Q80) -> 645 | P144: 645 | Q144: -> | S144: =R140 ->  | T144: =IF(S144=S143,T143,T143+(S144-S143)/(S145-S143)*(T145-T143)) ->  | W144: =W143+(X144-X143)/(X145-X143)*(W145-W143) ->  | X144: =IF(T132<0,S144,"not applicable") -> not applicable | Y144: =IF(T132>=0,S144,"not applicable") ->  | Z144: =Z143+(Y144-Y143)/(Y145-Y143)*(Z145-Z143) ->  | AA144: =AA143+(Y144-Y143)/(Y145-Y143)*(AA145-AA143) ->  | AB144: =AB143+(Y144-Y143)/(Y145-Y143)*(AB145-AB143) -> 
O145: =IF($T$132<0,'Aquila performance specs'!P81,'Aquila performance specs'!Q81) -> 745 | P145: 745 | R145: =R143+1 ->  | S145: =IF(T132<0,VLOOKUP(R145,'Aquila performance specs'!N78:P82,3,FALSE),VLOOKUP(R145,'Aquila performance specs'!N78:Q82,4,FALSE)) ->  | T145: =VLOOKUP(S145,O142:P146,2,FALSE) ->  | V145: =R145 ->  | W145: =VLOOKUP($V$145,'Aquila performance specs'!$N$78:$T$82,2,FALSE) ->  | X145: =VLOOKUP($V$145,'Aquila performance specs'!$N$78:$T$82,3,FALSE) ->  | Y145: =VLOOKUP($V$145,'Aquila performance specs'!$N$78:$T$82,4,FALSE) ->  | Z145: =VLOOKUP($V$145,'Aquila performance specs'!$N$78:$T$82,5,FALSE) ->  | AA145: =VLOOKUP($V$145,'Aquila performance specs'!$N$78:$T$82,6,FALSE) ->  | AB145: =VLOOKUP($V$145,'Aquila performance specs'!$N$78:$T$82,7,FALSE) -> 
O146: =IF($T$132<0,'Aquila performance specs'!P82,'Aquila performance specs'!Q82) -> 840 | P146: 840
N148: from landing distance in table
O149: look for Y-value: | P149: =T133 ->  | T149: 50 | U149: 0
T150: ='Aquila performance specs'!W77 -> 220 | U150: ='Aquila performance specs'!X77 -> 85
T151: ='Aquila performance specs'!W78 -> 290 | U151: ='Aquila performance specs'!X78 -> 125
O152: row index | T152: ='Aquila performance specs'!W79 -> 375 | U152: ='Aquila performance specs'!X79 -> 160
O153: =VLOOKUP(P153,'Aquila performance specs'!W77:Y89,3,FALSE) ->  | P153: =LOOKUP(P149,T150:T162) ->  | Q153: =VLOOKUP(P153,T150:U162,2,FALSE) ->  | T153: ='Aquila performance specs'!W80 -> 435 | U153: ='Aquila performance specs'!X80 -> 175
P154: =P149 ->  | Q154: NO INTERMEDIATE DATA MAY BE USED | T154: ='Aquila performance specs'!W81 -> 500 | U154: ='Aquila performance specs'!X81 -> 210
O155: =O153+1 ->  | P155: =IF(P149<T150,T150,VLOOKUP(O155,'Aquila performance specs'!V77:X89,2,FALSE)) ->  | Q155: =VLOOKUP(P155,T150:U162,2,FALSE) ->  | T155: ='Aquila performance specs'!W82 -> 580 | U155: ='Aquila performance specs'!X82 -> 240
T156: ='Aquila performance specs'!W83 -> 650 | U156: ='Aquila performance specs'!X83 -> 275
T157: ='Aquila performance specs'!W84 -> 720 | U157: ='Aquila performance specs'!X84 -> 300
O158: Ground roll required: | Q158: =Q155&" m" ->  | T158: ='Aquila performance specs'!W85 -> 790 | U158: ='Aquila performance specs'!X85 -> 330
O159: Landing distance required (over 50 ft obstacle): | R159: =P155&" m" ->  | T159: ='Aquila performance specs'!W86 -> 865 | U159: ='Aquila performance specs'!X86 -> 355
T160: ='Aquila performance specs'!W87 -> 935 | U160: ='Aquila performance specs'!X87 -> 390
O161: additional correction factors | T161: ='Aquila performance specs'!W88 -> 1000 | U161: ='Aquila performance specs'!X88 -> 425
P162: type of runway | Q162: =IF(E47=2,"PAVED",IF(E47=3,"DRY GRASS","ERROR")) -> ERROR | R162: -> | S162: =IF(Q162="PAVED",0%,IF(Q162="DRY GRASS",15%,)) -> 0 | T162: ='Aquila performance specs'!W89 -> 1065 | U162: ='Aquila performance specs'!X89 -> 450
P163: safety factor | Q163: =E49 -> 0.5
P164: TOTAL additional correction factor | S164: =SUM(Q163,S162) -> 0.5
O166: ground roll required (with safety factor) | R166: =Q155*(1+S164) ->  | S166: m
O167: Landing distance required (over 50 ft obstacle with safety factor) | T167: =P155*(1+S164) ->  | U167: m
M170: Cruise power section (part 2)
N171: calculated density altitude | P171: =E29 -> COMPLETE THE FORM | S171: -> | T171: is there any data available for these values? | W171: =IF(R172="MCP",IF(AND(P171>=0,P171<='Aquila performance specs'!C184),"YES","NO"),IF(AND(P171>=-2000,P171<=12000),"YES","NO")) -> NO
N172: selected cruise power setting | P172: =E30 -> 1 | Q172: -> | R172: =VLOOKUP(P172,L14:M19,2,FALSE) -> SELECT VALUE
O174: -2000 | P174: =IF(AND(W171="YES",R172<>"MCP"),HLOOKUP($R$172,'Aquila performance specs'!$C$179:$F$181,2,FALSE),"") -> 
O175: =P171 -> COMPLETE THE FORM | P175: =IF(AND(W171="YES",R172<>"MCP"),IF(O175>O176,P176,P174+(O175-O174)/(O176-O174)*(P176-P174)),"") ->  | R175: OR | T175: MCP
N176: max. RPM 2260 = | O176: =HLOOKUP(R172,'Aquila performance specs'!C179:F185,6,FALSE) ->  | P176: =IF(AND(W171="YES",R172<>"MCP"),HLOOKUP(R172,'Aquila performance specs'!C179:F185,7,FALSE),"") ->  | T176: 1 | U176: 2 | V176: 3 | W176: 4 | X176: 5
T177: ='Aquila performance specs'!$G$184 -> 0 | U177: ='Aquila performance specs'!$F$184 -> 3714 | V177: ='Aquila performance specs'!$E$184 -> 6286 | W177: ='Aquila performance specs'!$D$184 -> 9000 | X177: ='Aquila performance specs'!$C$184 -> 10286
T178: ='Aquila performance specs'!$G$185 -> 129.11 | U178: ='Aquila performance specs'!$F$185 -> 125.8117857 | V178: ='Aquila performance specs'!$E$185 -> 121.3778571 | W178: ='Aquila performance specs'!$D$185 -> 115.7157143 | X178: ='Aquila performance specs'!$C$185 -> 107.89172
T179: 1 | U179: 2 | V179: 3 | W179: 4 | X179: 5
T181: =HLOOKUP(U181,T177:X179,3,FALSE) ->  | U181: =LOOKUP(U182,T177:X177) ->  | V181: =HLOOKUP(U181,T177:X178,2,FALSE) -> 
U182: =P171 -> COMPLETE THE FORM | V182: =IF(AND(R172="MCP",W171="YES"),V181+(U182-U181)/(U183-U181)*(V183-V181),IF(AND(R172="MCP",W171="NO",P171<0),'Aquila performance specs'!G185,"")) -> 
T183: =T181+1 ->  | U183: =HLOOKUP(T183,T176:X178,2,FALSE) ->  | V183: =HLOOKUP(U183,T177:X178,2,FALSE) -> 
O186: ="KTAS at density altitude of "&P171&" ft and a power setting of "&IF(R172<>"MCP",R172*100&"%",R172)&" is:" ->  | T186: =IF(P175="",V182,IF(V182="",P175)) ->  | U186: kts

Sheet W&B FORM
B1: =Introduction!A2 -> remarks? tony.opsomer@gmail.com | O1: =Introduction!H2 -> version 2023-07-15
B3: Weight & balance form D-EVIE | P3: BE.DTO.113
H5: Fuel quantity | I5: Weight | J5: Arm | K5: Moment | M5: Form validity checker | T5: Calculations
H6: [l] | I6: [kg] | J6: [m] | K6: [kg.m] | M6: Don't forget: always do a manual check on your data!!
B7: Basic empty weight (includes brake fluid, eng. oil & coolant and 10,4 l unusable fuel) | I7: ='Aquila performance specs'!C135 -> 505 | J7: =K7/I7 -> 0.4335445545 | K7: ='Aquila performance specs'!H135 -> 218.94
B8: Usable fuel (max. 109,60 l) | I8: =H8*0.72 -> 0 | J8: 0.325 | K8: =I8*J8 -> 0 | M8: =IF(H8="","COMPLETE THE FORM",IF(H8>109.6,"FUEL TANK OVERFLOW","FUEL QUANTITY WITHIN LIMIT")) -> COMPLETE THE FORM | O8: =IF(OR(H8="",I9="",I10="",I11=""),"COMPLETE THE FORM",IF(SUM(I7:I11)>'Aquila performance specs'!C134,"TOO MUCH USEFUL LOAD","TOTAL USEFUL LOAD WITHIN LIMIT")) -> COMPLETE THE FORM
B9: Pilot | C9: forward position | D9: 5145 | F9: rearward position | J9: =D9/10000 -> 0.5145 | K9: =I9*J9 -> 0 | T9: Aquila approved centre of gravity range and mass moment limits | Z9: xS1= | AA9: 0.427 | AB9: xS2= | AC9: 0.523
B10: Passenger | C10: forward position | D10: 5149 | F10: rearward position | J10: =D10/10000 -> 0.5149 | K10: =I10*J10 -> 0
B11: Baggage area | J11: 1.3 | K11: =I11*J11 -> 0 | M11: =IF(I11="","COMPLETE THE FORM",IF(I11>40,"TOO MUCH BAGGAGE","BAGGAGE VALUE OK")) -> COMPLETE THE FORM | T11: X | U11: =U12*AA9 -> 215.635 | V11: =U12*AC9 -> 264.115 | W11: =W12*AA9 -> 320.25 | X11: =X12*AC9 -> 392.25 | Y11: =U11 -> 215.635 | Z11: =W11 -> 320.25 | AA11: =V11 -> 264.115 | AB11: =X11 -> 392.25
B12: RAMP WEIGHT AND MOMENT | I12: =IF(OR(H8="",I9="",I10="",I11=""),"NO DATA",SUM(I7:I11)) -> NO DATA | J12: =IF(OR(H8="",I9="",I10="",I11=""),"NO DATA",K12/I12) -> NO DATA | K12: =IF(OR(H8="",I9="",I10="",I11=""),"NO DATA",SUM(K7:K11)) -> NO DATA | M12: =IF(I12="NO DATA","COMPLETE THE FORM",IF(AND(I12<='Aquila performance specs'!C134,Z30="YES"),"RAMP WEIGHT AND MOMENT WITHIN LIMITS",IF(I12>'Aquila performance specs'!C134,"DANGER: RAMP WEIGHT OUT OF LIMIT",IF(AND('W&B FORM'!I12<='Aquila performance specs'!C134,Z30="NO"),"DANGER: RAMP MOMENT OUT OF LIMIT")))) -> COMPLETE THE FORM | T12: Y | U12: ='Aquila performance specs'!C135 -> 505 | V12: =U12 -> 505 | W12: ='Aquila performance specs'!C134 -> 750 | X12: =W12 -> 750 | Y12: =U12 -> 505 | Z12: =W12 -> 750 | AA12: =V12 -> 505 | AB12: =X12 -> 750
B13: Fuel allowance for engine start, taxi and runup | H13: 3 | I13: =H13*0.72 -> 2.16 | J13: =J8 -> 0.325 | K13: =IF(E8="SELECT AIRPLANE","SELECT AIRPLANE",I13*J13) -> 0.702
B14: TAKE-OFF WEIGHT AND MOMENT | I14: =IF(OR(H8="",I9="",I10="",I11="",H13=""),"NO DATA",I12-I13) -> NO DATA | J14: =IF(OR(H8="",I9="",I10="",I11="",H13=""),"NO DATA",K14/I14) -> NO DATA | K14: =IF(OR(H8="",I9="",I10="",I11="",H13=""),"NO DATA",K12-K13) -> NO DATA | M14: =IF(I14="NO DATA","COMPLETE THE FORM",IF(AND(I14<='Aquila performance specs'!C134,Z31="YES"),"TAKE-OFF WEIGHT AND MOMENT WITHIN LIMITS",IF(I14>'Aquila performance specs'!C134,"DANGER: TAKE-OFF WEIGHT OUT OF LIMIT",IF(AND('W&B FORM'!I14<='Aquila performance specs'!C134,Z31="NO"),"DANGER: TAKE-OFF MOMENT OUT OF LIMIT")))) -> COMPLETE THE FORM
B15: Total trip time | F15: hh:mm | H15: =(HOUR(E15)*60+MINUTE(E15))/60*MAX('Aquila performance specs'!F6:F12,'Aquila performance specs'!I6:I12,'Aquila performance specs'!L6:L12,'Aquila performance specs'!O6:O12,'Aquila performance specs'!R6:R12) -> 0 | I15: =H15*0.72 -> 0 | J15: =J8 -> 0.325 | K15: =I15*J15 -> 0 | M15: =IF(I14="NO DATA","COMPLETE THE FORM",IF(H15<(H8-(26*45/60)),"TRIP TIME WITHIN LIMIT",IF(H15<H8,"DANGER! DANGER! FUEL RESERVE LESS THAN 45 MIN","TRIP TIME TOO BIG"))) -> COMPLETE THE FORM | T15: dotted lines to calculated points
B16: LANDING WEIGHT AND MOMENT | I16: =IF(OR(H8="",I9="",I10="",I11="",E15="",H13=""),"NO DATA",IF(M15="TRIP TIME TOO BIG","CHECK",I14-I15)) -> NO DATA | J16: =IF(OR(H8="",I9="",I10="",I11="",E15="",H13=""),"NO DATA",IF(M15="TRIP TIME TOO BIG","TRIP",K16/I16)) -> NO DATA | K16: =IF(OR(H8="",I9="",I10="",I11="",E15="",H13=""),"NO DATA",IF(M15="TRIP TIME TOO BIG","TIME",K14-K15)) -> NO DATA | M16: =IF(I16="NO DATA","COMPLETE THE FORM",IF(AND(I16<='Aquila performance specs'!C134,Z32="YES"),"RAMP WEIGHT AND MOMENT WITHIN LIMITS",IF(I16>'Aquila performance specs'!C134,"DANGER: LANDING WEIGHT OUT OF LIMIT",IF(AND('W&B FORM'!I16<='Aquila performance specs'!C134,Z32="NO"),"DANGER: LANDING MOMENT OUT OF LIMIT")))) -> COMPLETE THE FORM | U16: X | V16: 210 | W16: =K12 -> NO DATA | X16: =W16 -> NO DATA | Y16: =X16 -> NO DATA
U17: Y | V17: =I12 -> NO DATA | W17: =I12 -> NO DATA | X17: =W17 -> NO DATA | Y17: 0
B18: Mass [kg]
U19: X | V19: =V16 -> 210 | W19: =K14 -> NO DATA | X19: =W19 -> NO DATA | Y19: =W19 -> NO DATA
U20: Y | V20: =I14 -> NO DATA | W20: =V20 -> NO DATA | X20: =W20 -> NO DATA | Y20: 0
U22: X | V22: 210 | W22: =K16 -> NO DATA | X22: =W22 -> NO DATA | Y22: =W22 -> NO DATA
U23: Y | V23: =I16 -> NO DATA | W23: =I16 -> NO DATA | X23: =W23 -> NO DATA | Y23: 0
T27: Ramp, Take-off and landing moments within limits?
X28: limits | Z28: SAFE?
X29: MIN | Y29: MAX
U30: Ramp moment: | W30: =K12 -> NO DATA | X30: =I12*AA9 ->  | Y30: =I12*AC9 ->  | Z30: =IF(AND(W30>=X30,W30<=Y30),"YES","NO") -> 
U31: Take-off moment: | W31: =K14 -> NO DATA | X31: =AA9*I14 ->  | Y31: =I14*AC9 ->  | Z31: =IF(AND(W31>=X31,W31<=Y31),"YES","NO") -> 
U32: Landing moment: | W32: =K16 -> NO DATA | X32: =AA9*I16 ->  | Y32: =I16*AC9 ->  | Z32: =IF(AND(W32>=X32,W32<=Y32),"YES","NO") -> 
B44: Mass moment [kg.m]
B46: This document is provided for secondary flightplanning and navigation only. It is the user/pilot's sole responsibility to verify the correctness of all information provided by this sheet.

Sheet Aquila performance specs
A1: Based on the original Aquila information dated 2008/09/17, document FM-AT01-1010-100E, issue A.12
B2: Cruise power settings
B3: Press alt [ft] | C3: Temp ISA [°C] | D3: Cruise power - % of the maximum countinous power MCP
D4: 0.55 | G4: 0.65 | J4: 0.75 | M4: 0.85 | P4: MCP
D5: RPM | E5: MAP [in Hg] | F5: F/F [l/h] | G5: RPM | H5: MAP [in Hg] | I5: F/F [l/h] | J5: RPM | K5: MAP [in Hg] | L5: F/F [l/h] | M5: RPM | N5: MAP [in Hg] | O5: F/F [l/h] | P5: RPM | Q5: MAP [in Hg] | R5: F/F [l/h]
B6: 0 | C6: 15 | D6: 1900 | E6: 24.6 | F6: 14 | G6: 2000 | H6: 25.7 | I6: 15.6 | J6: 2100 | K6: 27 | L6: 21 | M6: 2260 | N6: 27.7 | O6: 24 | P6: 2260 | Q6: 28 | R6: 26
B7: 2000 | C7: 11 | D7: 1900 | E7: 24 | F7: 15 | G7: 2000 | H7: 24.7 | I7: 16 | J7: 2200 | K7: 25.7 | L7: 21.3 | M7: 2260 | N7: 26.7 | O7: 22 | P7: 2260 | Q7: 27 | R7: 26
B8: 4000 | C8: 7 | D8: 1900 | E8: 23.3 | F8: 16 | G8: 2100 | H8: 23.3 | I8: 16.8 | J8: 2260 | K8: 24.3 | L8: 21.5 | M8: 2260 | N8: 25.2 | O8: 22 | P8: N/B | Q8: N/B | R8: N/B
B9: 6000 | C9: 3 | D9: 2000 | E9: 22 | F9: 17 | G9: 2200 | H9: 22.7 | I9: 19.3 | J9: 2260 | K9: 23.3 | L9: 22.3 | M9: N/B | N9: N/B | O9: N/B | P9: N/B | Q9: N/B | R9: N/B
B10: 8000 | C10: -1 | D10: 2100 | E10: 21 | F10: 18 | G10: 2200 | H10: 21.5 | I10: 21.5 | J10: 2260 | K10: 21.5 | L10: 23 | M10: N/B | N10: N/B | O10: N/B | P10: N/B | Q10: N/B | R10: N/B
B11: 10000 | C11: -5 | D11: 2200 | E11: 19.7 | F11: 19 | G11: 2260 | H11: 20.1 | I11: 22 | J11: N/B | K11: N/B | L11: N/B | M11: N/B | N11: N/B | O11: N/B | P11: N/B | Q11: N/B | R11: N/B
B12: 12000 | C12: -9 | D12: 2260 | E12: 18.5 | F12: 19 | G12: N/B | H12: N/B | I12: N/B | J12: N/B | K12: N/B | L12: N/B | M12: N/B | N12: N/B | O12: N/B | P12: N/B | Q12: N/B | R12: N/B
L13: For each 10°C above ISA temp: increase MAP by 3%, increase F/F by 5%
L14: For each 10°C below ISA temp: decrease MAP by 3%, decrease F/F by 5%
B16: Take-off distance
B17: OAT | I17: mass | P17: tailwind | Q17: headwind | W17: ground roll/TOD req
C18: -30 | D18: 40 | I18: 750 | J18: 550 | P18: 1 | Q18: 2 | R18: 3 | S18: 4 | T18: 5 | W18: 0 | X18: 50
B19: 0 | C19: 192 | D19: 296 | H19: 1 | I19: 200 | J19: 122 | K19: 1 | P19: -10 | Q19: 0 | R19: 10 | S19: 15 | T19: 20 | V19: 1 | W19: 120 | X19: 222 | Y19: 1
B20: 2000 | C20: 218 | D20: 337 | H20: 2 | I20: 222 | J20: 139 | K20: 2 | O20: 1 | P20: 163 | Q20: 120 | R20: 92 | S20: 80 | T20: 76 | U20: 1 | V20: 2 | W20: 152 | X20: 280 | Y20: 2
B21: 4000 | C21: 253 | D21: 385 | H21: 3 | I21: 258 | J21: 160 | K21: 3 | O21: 2 | P21: 270 | Q21: 204 | R21: 160 | S21: 140 | T21: 123 | U21: 2 | V21: 3 | W21: 180 | X21: 318 | Y21: 3
B22: 6000 | C22: 290 | D22: 442 | H22: 4 | I22: 295 | J22: 181 | K22: 4 | O22: 3 | P22: 403 | Q22: 290 | R22: 222 | S22: 200 | T22: 178 | U22: 3 | V22: 4 | W22: 211 | X22: 400 | Y22: 4
B23: 8000 | C23: 337 | D23: 517 | H23: 5 | I23: 337 | J23: 210 | K23: 5 | O23: 4 | P23: 538 | Q23: 398 | R23: 300 | S23: 270 | T23: 242 | U23: 4 | V23: 5 | W23: 240 | X23: 444 | Y23: 5
H24: 6 | I24: 383 | J24: 240 | K24: 6 | O24: 5 | P24: 698 | Q24: 517 | R24: 397 | S24: 350 | T24: 315 | U24: 5 | V24: 6 | W24: 270 | X24: 500 | Y24: 6
H25: 7 | I25: 423 | J25: 277 | K25: 7 | P25: 1 | Q25: 2 | R25: 3 | S25: 4 | T25: 5 | V25: 7 | W25: 300 | X25: 560 | Y25: 7
H26: 8 | I26: 517 | J26: 320 | K26: 8 | V26: 8 | W26: 335 | X26: 617 | Y26: 8
V27: 9 | W27: 360 | X27: 670 | Y27: 9
V28: 10 | W28: 390 | X28: 728 | Y28: 10
B29: Notes: | V29: 11 | W29: 420 | X29: 780 | Y29: 11
B30: For operation on dry grass runway, increase the required take-off distances by 25%, on soft grass runway by up to 40% | V30: 12 | W30: 450 | X30: 840 | Y30: 12
B31: Add appropriate values for wet grass/ground, ice, snow and slush | V31: 13 | W31: 480 | X31: 900 | Y31: 13
B32: In high humidity conditions the take-off distances may increase up to 10% | V32: 14 | W32: 517 | X32: 960 | Y32: 14
B33: A not properly maintained aircraft, deviations from defined procedures, bad meteorological, ambient and runway conditions (rain, crosswind, wind shear, etc.) may considerably increase the required take-off distances
B34: This data was obtained from the original take-off distance graph (manual, page 5-7). Since the graph did not include exact numbers, this data is likely to be inaccurate!
B37: interpolated graphs
B38: -30 | C38: 40 | H38: 750 | I38: 550 | O38: -10 | P38: 0 | R38: 0 | S38: 10 | T38: 15 | U38: 20
B39: ='Performance FORM'!O53 ->  | C39: ='Performance FORM'!Q53 ->  | H39: ='Performance FORM'!O59 ->  | I39: ='Performance FORM'!Q59 ->  | O39: ='Performance FORM'!W76 ->  | P39: ='Performance FORM'!S76 ->  | R39: =P39 ->  | S39: ='Performance FORM'!Y76 ->  | T39: ='Performance FORM'!Z76 ->  | U39: ='Performance FORM'!AA76 -> 
B40: calculated values to determine take-off distance required
B41: =D41 -> 0 | C41: =D41 -> 0 | D41: ='Performance FORM'!T52 -> 0 | E41: 40 | H41: ='Performance FORM'!T58 ->  | I41: 750 | J41: =H41 ->  | K41: =J41 ->  | L41: =K41 ->  | M41: 550 | N41: -10 | O41: 0 | P41: ='Performance FORM'!T64 -> 0 | Q41: =P41 -> 0 | R41: =Q41 -> 0 | S41: 20 | T41: 0 | U41: =R41 -> 0 | W41: 0 | X41: 50
B42: 0 | C42: =D42 ->  | D42: ='Performance FORM'!T53 ->  | E42: =D42 ->  | H42: ='Performance FORM'!T59 ->  | I42: =E42 ->  | J42: 0 | K42: =H42 ->  | L42: =K42 ->  | M42: =K42 ->  | N42: =M42 ->  | O42: =N42 ->  | P42: 0 | Q42: ='Performance FORM'!T65 ->  | R42: =Q42 ->  | S42: =R42 ->  | T42: ='Performance FORM'!T59 ->  | U42: ='Performance FORM'!T65 ->  | W42: ='Performance FORM'!P87 ->  | X42: ='Performance FORM'!Q87 -> 
B56: Outside air temperature [°C] | H56: Take-off mass [kg] | O56: Wind component [kts]
B71: Outside air temperature [°C] | H71: Take-off mass [kg] | N71: Wind component [kts] | V71: Obstacle height [ft]
B74: Landing distance
B75: OAT | I75: mass | P75: tailwind | Q75: headwind | W75: ground roll/LAD req
C76: -30 | D76: 40 | I76: 750 | J76: 550 | O76: 1 | P76: 2 | Q76: 3 | R76: 4 | S76: 5 | T76: 6 | W76: 50 | X76: 0
B77: 0 | C77: 410 | D77: 550 | H77: 1 | I77: 410 | J77: 365 | K77: 1 | O77: 10 | P77: 0 | Q77: 0 | R77: 10 | S77: 15 | T77: 20 | V77: 1 | W77: 220 | X77: 85 | Y77: 1
B78: 2000 | C78: 451 | D78: 610 | H78: 2 | I78: 450 | J78: 400 | K78: 2 | N78: 1 | O78: 485 | P78: 360 | Q78: 360 | R78: 275 | S78: 240 | T78: 220 | U78: 1 | V78: 2 | W78: 290 | X78: 125 | Y78: 2
B79: 4000 | C79: 500 | D79: 680 | H79: 3 | I79: 500 | J79: 440 | K79: 3 | N79: 2 | O79: 575 | P79: 430 | Q79: 525 | R79: 400 | S79: 360 | T79: 325 | U79: 2 | V79: 3 | W79: 375 | X79: 160 | Y79: 3
B80: 6000 | C80: 560 | D80: 750 | H80: 4 | I80: 550 | J80: 480 | K80: 4 | N80: 3 | O80: 690 | P80: 515 | Q80: 645 | R80: 500 | S80: 435 | T80: 395 | U80: 3 | V80: 4 | W80: 435 | X80: 175 | Y80: 4
B81: 8000 | C81: 625 | D81: 840 | H81: 5 | I81: 610 | J81: 540 | K81: 5 | N81: 4 | O81: 810 | P81: 600 | Q81: 745 | R81: 570 | S81: 505 | T81: 455 | U81: 4 | V81: 5 | W81: 500 | X81: 210 | Y81: 5
H82: 6 | I82: 680 | J82: 595 | K82: 6 | N82: 5 | O82: 950 | P82: 700 | Q82: 840 | R82: 645 | S82: 575 | T82: 515 | U82: 5 | V82: 6 | W82: 580 | X82: 240 | Y82: 6
H83: 7 | I83: 750 | J83: 660 | K83: 7 | O83: 1 | P83: 2 | Q83: 3 | R83: 4 | S83: 5 | T83: 6 | V83: 7 | W83: 650 | X83: 275 | Y83: 7
H84: 8 | I84: 840 | J84: 740 | K84: 8 | V84: 8 | W84: 720 | X84: 300 | Y84: 8
V85: 9 | W85: 790 | X85: 330 | Y85: 9
V86: 10 | W86: 865 | X86: 355 | Y86: 10
V87: 11 | W87: 935 | X87: 390 | Y87: 11
B88: Notes: | V88: 12 | W88: 1000 | X88: 425 | Y88: 12
B89: For operation on dry grass runway, increase the requiredlanding distances by 15% | V89: 13 | W89: 1065 | X89: 450 | Y89: 13
B90: Add appropriate values for wet grass/ground, ice, snow and slush
B91: A not properly maintained aircraft, deviations from defined procedures, bad meteorological and runway conditions (rain, crosswind, wind shear, etc.) may considerably increase the landing distances
B92: This data was obtained from the original landing distance graph (manual, page 5-16). Since the graph did not include exact numbers, this data is likely to be inaccurate!
B95: interpolated graphs
B96: -30 | C96: 40 | H96: 750 | I96: 550 | O96: 10 | P96: 0 | R96: 0 | S96: 10 | T96: 15 | U96: 20
B97: ='Performance FORM'!O121 ->  | C97: ='Performance FORM'!Q121 ->  | H97: ='Performance FORM'!O127 ->  | I97: ='Performance FORM'!Q127 ->  | O97: ='Performance FORM'!W144 ->  | P97: ='Performance FORM'!X144 -> not applicable | R97: ='Performance FORM'!Y144 ->  | S97: ='Performance FORM'!Z144 ->  | T97: ='Performance FORM'!AA144 ->  | U97: ='Performance FORM'!AB144 -> 
B98: calculated values to determine landing distance required
B99: =D99 -> 0 | C99: =D99 -> 0 | D99: ='Performance FORM'!T120 -> 0 | E99: 40 | H99: ='Performance FORM'!T126 ->  | I99: 750 | J99: =H99 ->  | K99: =J99 ->  | L99: =K99 ->  | M99: 550 | P99: 0 | Q99: =ABS('Performance FORM'!T142) -> 0 | R99: =ABS('Performance FORM'!T142) -> 0 | S99: 20 | T99: =ABS('Performance FORM'!T142) -> 0 | U99: =R99 -> 0 | W99: 50 | X99: 0
B100: 0 | C100: =D100 ->  | D100: ='Performance FORM'!T121 ->  | E100: =D100 ->  | H100: ='Performance FORM'!T127 ->  | I100: =E100 ->  | J100: 0 | K100: =H100 ->  | L100: =K100 ->  | M100: =K100 ->  | P100: ='Performance FORM'!S144 ->  | Q100: ='Performance FORM'!T144 ->  | R100: ='Performance FORM'!T144 ->  | S100: =R100 ->  | T100: 0 | U100: =R100 ->  | W100: ='Performance FORM'!P155 ->  | X100: ='Performance FORM'!Q155 -> 
B114: Outside air temperature [°C] | H114: Take-off mass [kg] | O114: Wind component [kts]
B129: Outside air temperature [°C] | H129: Landing mass [kg] | N129: Wind component [kts] | V129: Obstacle height [ft]
B132: Weight and balance data Aquila
B134: MTOW [kg] | C134: 750
B135: Empty Weight [kg] | C135: 505 | E135: Empty weight moment [kg.m] | H135: 218.94
B136: Max. useful load [kg] | C136: =C134-C135 -> 245
B139: Loading graph
C140: Fuel | G140: Baggage | K140: Seat in most forward position | O140: Seat in most rearward position
C142: Load mass[kg] | D142: Moment [kg.m] | G142: Load mass[kg] | H142: Moment [kg.m] | K142: Load mass[kg] | L142: Moment [kg.m] | O142: Load mass[kg] | P142: Moment [kg.m]
C143: 0 | D143: 0 | G143: 0 | H143: 0 | K143: 0 | L143: 0 | O143: 0 | P143: 0
C144: 86.4 | D144: =C144*0.325 -> 28.08 | G144: 40 | H144: =40*1.3 -> 52 | K144: 220 | L144: 100 | O144: 220 | P144: 131.54
B146: This data was obtained from the original loading graph (manual, page 6-8). Since the graph did not include exact numbers, this data is likely to be inaccurate!
B149: interpolated graphs | C149: fuel | G149: baggage | K149: pilot seat graph | M149: passenger seat graph | O149: pilot | S149: passenger
C150: 0 | D150: ='W&B FORM'!K8 -> 0 | E150: =D150 -> 0 | F150: =E150 -> 0 | G150: 0 | H150: ='W&B FORM'!K11 -> 0 | I150: =H150 -> 0 | J150: =H150 -> 0 | K150: 0 | L150: =L151*'W&B FORM'!J9 -> 113.19 | M150: 0 | N150: =N151*'W&B FORM'!J10 -> 113.278 | O150: 0 | P150: ='W&B FORM'!K9 -> 0 | Q150: =P150 -> 0 | R150: =P150 -> 0 | S150: 0 | T150: ='W&B FORM'!K10 -> 0 | U150: =T150 -> 0 | V150: =U150 -> 0
C151: =D151 -> 0 | D151: ='W&B FORM'!I8 -> 0 | E151: =D151 -> 0 | F151: 0 | G151: ='W&B FORM'!I11 -> 0 | H151: =G151 -> 0 | I151: =H151 -> 0 | J151: 0 | K151: 0 | L151: 220 | M151: 0 | N151: 220 | O151: ='W&B FORM'!I9 -> 0 | P151: =O151 -> 0 | Q151: =P151 -> 0 | R151: 0 | S151: ='W&B FORM'!I10 -> 0 | T151: =S151 -> 0 | U151: =T151 -> 0 | V151: 0
B152: Load mass [kg]
C174: Moment [kg.m]
B177: Cruise performance data (TAS - True airspeed)
B179: density altitude | C179: 0.55 | D179: 0.65 | E179: 0.75 | F179: 0.85 | K179: interpolated power setting values:
B180: -2000 | C180: 95.36 | D180: 103.93 | E180: 112.5 | F180: 120.71 | L180: X | M180: 95 | N180: =IF(ISERROR('Performance FORM'!O176),'Performance FORM'!T186,IF('Performance FORM'!O175>'Performance FORM'!O176,R180,'Performance FORM'!T186)) ->  | O180: ='Performance FORM'!T186 ->  | P180: =O180 ->  | Q180: =P180 ->  | R180: =IF(ISERROR('Performance FORM'!O176),"",IF('Performance FORM'!O175>'Performance FORM'!O176,'Performance FORM'!P174+('Performance FORM'!O175-'Performance FORM'!O174)/('Performance FORM'!O176-'Performance FORM'!O174)*('Performance FORM'!P176-'Performance FORM'!P174),"")) -> 
B181: 12000 | C181: 109.64 | D181: 118.93 | E181: =130-2.5 -> 127.5 | F181: 133.21 | L181: Y | M181: ='Performance FORM'!O175 -> COMPLETE THE FORM | N181: =M181 -> COMPLETE THE FORM | O181: 0 | P181: =IF(ISERROR('Performance FORM'!O176),N181,IF('Performance FORM'!O175>'Performance FORM'!O176,'Performance FORM'!O176,N181)) -> COMPLETE THE FORM | Q181: =IF(ISERROR('Performance FORM'!O176),"",IF('Performance FORM'!O175>'Performance FORM'!O176,'Performance FORM'!O176,"")) ->  | R181: =N181 -> COMPLETE THE FORM
B183: max. RPM 2260
B184: density altitude | C184: 10286 | D184: 9000 | E184: 6286 | F184: 3714 | G184: 0
B185: TAS | C185: =C180+(C184-$B$180)/($B$181-$B$180)*(C181-C180) -> 107.89172 | D185: =D180+(D184-$B$180)/($B$181-$B$180)*(D181-D180) -> 115.7157143 | E185: =E180+(E184-$B$180)/($B$181-$B$180)*(E181-E180) -> 121.3778571 | F185: =F180+(F184-$B$180)/($B$181-$B$180)*(F181-F180) -> 125.8117857 | G185: =130-0.89 -> 129.11
B188: Conditions:
B189: Power settings: refer to table 5.2.8 on page 5-10 (or "cruise power settings" section on this sheet)
B190: Airplane mass: 750 kg
B191: Flaps: cruise-position (0°)
B192: Wheel fairings installed!
B194: This data was obtained from the original cruise performance (TAS) graph (manual, page 5-12). Since the graph did not include exact numbers, this data is likely to be inaccurate!
B197: Density altitude [ft]
C218: True airspeed [KTAS]
